Publisher Label,Publisher URI,"Supplier ID","Supplier","Invoice No.","Amount £","Purpose","Transaction Number","Payment Date","Organisational Unit","Cost Centre(T)","Internal Category Number"
"Wolverhampton City Council","http://opendatacommunities.org/id/metropolitan-district-council/wolverhampton","706697","Radis Community Care","1111201820181114","192.39","TPP - Home Care","190528529","16/11/2018","Older People Care Purchasing","OP Care Purchasing (Spot Placements)","R5420"
"Wolverhampton City Council","http://opendatacommunities.org/id/metropolitan-district-council/wolverhampton","706697","Radis Community Care","1111201820181114","50.82","TPP - Home Care","190528529","16/11/2018","Older People Care Purchasing","OP Care Purchasing (Spot Placements)","R5420"
"Wolverhampton City Council","http://opendatacommunities.org/id/metropolitan-district-council/wolverhampton","706697","Radis Community Care","1111201820181114","228.69","TPP - Home Care","190528529","16/11/2018","Older People Care Purchasing","OP Care Purchasing (Spot Placements)","R5420"
"Wolverhampton City Council","http://opendatacommunities.org/id/metropolitan-district-council/wolverhampton","706697","Radis Community Care","1111201820181114","47.19","TPP - Home Care","190528529","16/11/2018","Older People Care Purchasing","OP Care Purchasing (Spot Placements)","R5420"
"Wolverhampton City Council","http://opendatacommunities.org/id/metropolitan-district-council/wolverhampton","706697","Radis Community Care","1111201820181114","163.35","TPP - Home Care","190528529","16/11/2018","Older People Care Purchasing","OP Care Purchasing (Spot Placements)","R5420"
"Wolverhampton City Council","http://opendatacommunities.org/id/metropolitan-district-council/wolverhampton","706697","Radis Community Care","1111201820181114","159.72","TPP - Home Care","190528529","16/11/2018","Physical Disabilities Care Purchasing","PD Care Purchasing (Spot Placements)","R5420"
"Wolverhampton City Council","http://opendatacommunities.org/id/metropolitan-district-council/wolverhampton","706697","Radis Community Care","1111201820181114","145.20","TPP - Home Care","190528529","16/11/2018","Physical Disabilities Care Purchasing","PD Care Purchasing (Spot Placements)","R5420"
"Wolverhampton City Council","http://opendatacommunities.org/id/metropolitan-district-council/wolverhampton","706697","Radis Community Care","1111201820181114","210.54","TPP - Home Care","190528529","16/11/2018","Older People Care Purchasing","OP Care Purchasing (Spot Placements)","R5420"
"Wolverhampton City Council","http://opendatacommunities.org/id/metropolitan-district-council/wolverhampton","706697","Radis Community Care","1111201820181114","203.28","TPP - Home Care","190528529","16/11/2018","Older People Care Purchasing","OP Care Purchasing (Spot Placements)","R5420"
"Wolverhampton City Council","http://opendatacommunities.org/id/metropolitan-district-council/wolverhampton","706697","Radis Community Care","1111201820181114","98.01","TPP - Home Care","190528529","16/11/2018","Older People Care Purchasing","OP Care Purchasing (Spot Placements)","R5420"
"Wolverhampton City Council","http://opendatacommunities.org/id/metropolitan-district-council/wolverhampton","706697","Radis Community Care","1111201820181114","36.30","TPP - Home Care","190528529","16/11/2018","Older People Care Purchasing","OP Care Purchasing (Spot Placements)","R5420"
"Wolverhampton City Council","http://opendatacommunities.org/id/metropolitan-district-council/wolverhampton","706697","Radis Community Care","1111201820181114","148.83","TPP - Home Care","190528529","16/11/2018","Older People Care Purchasing","OP Care Purchasing (Spot Placements)","R5420"
"Wolverhampton City Council","http://opendatacommunities.org/id/metropolitan-district-council/wolverhampton","706697","Radis Community Care","1111201820181114","69.00","TPP - Carer Support Service","190528529","16/11/2018","Carer Support","CS Care Purchasing (Spot Placements)","R5421"
"Wolverhampton City Council","http://opendatacommunities.org/id/metropolitan-district-council/wolverhampton","706697","Radis Community Care","1111201820181114","196.02","TPP - Home Care","190528529","16/11/2018","Older People Care Purchasing","OP Care Purchasing (Spot Placements)","R5420"
"Wolverhampton City Council","http://opendatacommunities.org/id/metropolitan-district-council/wolverhampton","706697","Radis Community Care","1111201820181114","203.28","TPP - Home Care","190528529","16/11/2018","Older People Care Purchasing","OP Care Purchasing (Spot Placements)","R5420"
"Wolverhampton City Council","http://opendatacommunities.org/id/metropolitan-district-council/wolverhampton","706697","Radis Community Care","1111201820181114","50.82","TPP - Home Care","190528529","16/11/2018","Older People Care Purchasing","OP Care Purchasing (Spot Placements)","R5420"
"Wolverhampton City Council","http://opendatacommunities.org/id/metropolitan-district-council/wolverhampton","706697","Radis Community Care","1111201820181114","50.82","TPP - Home Care","190528529","16/11/2018","Physical Disabilities Care Purchasing","PD Care Purchasing (Spot Placements)","R5420"
"Wolverhampton City Council","http://opendatacommunities.org/id/metropolitan-district-council/wolverhampton","706697","Radis Community Care","1111201820181114","50.82","TPP - Home Care","190528529","16/11/2018","Physical Disabilities Care Purchasing","PD Care Purchasing (Spot Placements)","R5420"
"Wolverhampton City Council","http://opendatacommunities.org/id/metropolitan-district-council/wolverhampton","706697","Radis Community Care","1111201820181114","50.82","TPP - Home Care","190528529","16/11/2018","Physical Disabilities Care Purchasing","PD Care Purchasing (Spot Placements)","R5420"
"Wolverhampton City Council","http://opendatacommunities.org/id/metropolitan-district-council/wolverhampton","706697","Radis Community Care","1111201820181114","101.64","TPP - Home Care","190528529","16/11/2018","Older People Care Purchasing","OP Care Purchasing (Spot Placements)","R5420"
"Wolverhampton City Council","http://opendatacommunities.org/id/metropolitan-district-council/wolverhampton","706697","Radis Community Care","1111201820181114","50.82","TPP - Home Care","190528529","16/11/2018","Older People Care Purchasing","OP Care Purchasing (Spot Placements)","R5420"
"Wolverhampton City Council","http://opendatacommunities.org/id/metropolitan-district-council/wolverhampton","706697","Radis Community Care","1111201820181114","50.82","TPP - Home Care","190528529","16/11/2018","Older People Care Purchasing","OP Care Purchasing (Spot Placements)","R5420"
"Wolverhampton City Council","http://opendatacommunities.org/id/metropolitan-district-council/wolverhampton","706697","Radis Community Care","1111201820181114","101.64","TPP - Home Care","190528529","16/11/2018","Older People Care Purchasing","OP Care Purchasing (Spot Placements)","R5420"
"Wolverhampton City Council","http://opendatacommunities.org/id/metropolitan-district-council/wolverhampton","706697","Radis Community Care","1111201820181114","21.78","TPP - Home Care","190528529","16/11/2018","Physical Disabilities Care Purchasing","PD Care Purchasing (Spot Placements)","R5420"
"Wolverhampton City Council","http://opendatacommunities.org/id/metropolitan-district-council/wolverhampton","706697","Radis Community Care","1111201820181114","192.39","TPP - Home Care","190528529","16/11/2018","Physical Disabilities Care Purchasing","PD Care Purchasing (Spot Placements)","R5420"
"Wolverhampton City Council","http://opendatacommunities.org/id/metropolitan-district-council/wolverhampton","706697","Radis Community Care","1111201820181114","58.08","TPP - Home Care","190528529","16/11/2018","Physical Disabilities Care Purchasing","PD Care Purchasing (Spot Placements)","R5420"
"Wolverhampton City Council","http://opendatacommunities.org/id/metropolitan-district-council/wolverhampton","706697","Radis Community Care","1111201820181114","39.93","TPP - Home Care","190528529","16/11/2018","Older People Care Purchasing","OP Care Purchasing (Spot Placements)","R5420"
"Wolverhampton City Council","http://opendatacommunities.org/id/metropolitan-district-council/wolverhampton","706697","Radis Community Care","1111201820181114","32.67","TPP - Home Care","190528529","16/11/2018","Physical Disabilities Care Purchasing","PD Care Purchasing (Spot Placements)","R5420"
"Wolverhampton City Council","http://opendatacommunities.org/id/metropolitan-district-council/wolverhampton","706697","Radis Community Care","1111201820181114","243.21","TPP - Home Care","190528529","16/11/2018","Older People Care Purchasing","OP Care Purchasing (Spot Placements)","R5420"
"Wolverhampton City Council","http://opendatacommunities.org/id/metropolitan-district-council/wolverhampton","706697","Radis Community Care","1111201820181114","98.01","TPP - Home Care","190528529","16/11/2018","Older People Care Purchasing","OP Care Purchasing (Spot Placements)","R5420"
"Wolverhampton City Council","http://opendatacommunities.org/id/metropolitan-district-council/wolverhampton","706697","Radis Community Care","1111201820181114","14.52","TPP - Home Care","190528529","16/11/2018","Older People Care Purchasing","OP Care Purchasing (Spot Placements)","R5420"
"Wolverhampton City Council","http://opendatacommunities.org/id/metropolitan-district-council/wolverhampton","706697","Radis Community Care","1111201820181114","555.39","TPP - Home Care","190528529","16/11/2018","Physical Disabilities Care Purchasing","PD Care Purchasing (Spot Placements)","R5420"
"Wolverhampton City Council","http://opendatacommunities.org/id/metropolitan-district-council/wolverhampton","706697","Radis Community Care","1111201820181114","446.49","TPP - Home Care","190528529","16/11/2018","Physical Disabilities Care Purchasing","PD Care Purchasing (Spot Placements)","R5420"
"Wolverhampton City Council","http://opendatacommunities.org/id/metropolitan-district-council/wolverhampton","706697","Radis Community Care","1111201820181114","76.23","TPP - Home Care","190528529","16/11/2018","Learning Disabilities Care Purchasing","LD Care Purchasing (Spot Placements)","R5420"
"Wolverhampton City Council","http://opendatacommunities.org/id/metropolitan-district-council/wolverhampton","706697","Radis Community Care","1111201820181114","58.08","TPP - Home Care","190528529","16/11/2018","Older People Care Purchasing","OP Care Purchasing (Spot Placements)","R5420"
"Wolverhampton City Council","http://opendatacommunities.org/id/metropolitan-district-council/wolverhampton","706697","Radis Community Care","1111201820181114","14.52","TPP - Home Care","190528529","16/11/2018","Older People Care Purchasing","OP Care Purchasing (Spot Placements)","R5420"
"Wolverhampton City Council","http://opendatacommunities.org/id/metropolitan-district-council/wolverhampton","706697","Radis Community Care","1111201820181114","76.23","TPP - Home Care","190528529","16/11/2018","Older People Care Purchasing","OP Care Purchasing (Spot Placements)","R5420"
"Wolverhampton City Council","http://opendatacommunities.org/id/metropolitan-district-council/wolverhampton","706697","Radis Community Care","1111201820181114","105.27","TPP - Home Care","190528529","16/11/2018","Older People Care Purchasing","OP Care Purchasing (Spot Placements)","R5420"
"Wolverhampton City Council","http://opendatacommunities.org/id/metropolitan-district-council/wolverhampton","706697","Radis Community Care","1111201820181114","36.30","TPP - Home Care","190528529","16/11/2018","Older People Care Purchasing","OP Care Purchasing (Spot Placements)","R5420"
"Wolverhampton City Council","http://opendatacommunities.org/id/metropolitan-district-council/wolverhampton","706697","Radis Community Care","1111201820181114","87.12","TPP - Home Care","190528529","16/11/2018","Older People Care Purchasing","OP Care Purchasing (Spot Placements)","R5420"
"Wolverhampton City Council","http://opendatacommunities.org/id/metropolitan-district-council/wolverhampton","706697","Radis Community Care","1111201820181114","290.40","TPP - Home Care","190528529","16/11/2018","Physical Disabilities Care Purchasing","PD Care Purchasing (Spot Placements)","R5420"
"Wolverhampton City Council","http://opendatacommunities.org/id/metropolitan-district-council/wolverhampton","706697","Radis Community Care","1111201820181114","290.40","TPP - Home Care","190528529","16/11/2018","Physical Disabilities Care Purchasing","PD Care Purchasing (Spot Placements)","R5420"
"Wolverhampton City Council","http://opendatacommunities.org/id/metropolitan-district-council/wolverhampton","706697","Radis Community Care","1111201820181114","98.01","TPP - Home Care","190528529","16/11/2018","Older People Care Purchasing","OP Care Purchasing (Spot Placements)","R5420"
"Wolverhampton City Council","http://opendatacommunities.org/id/metropolitan-district-council/wolverhampton","706697","Radis Community Care","1111201820181114","50.82","TPP - Home Care","190528529","16/11/2018","Older People Care Purchasing","OP Care Purchasing (Spot Placements)","R5420"
"Wolverhampton City Council","http://opendatacommunities.org/id/metropolitan-district-council/wolverhampton","706697","Radis Community Care","1111201820181114","199.65","TPP - Home Care","190528529","16/11/2018","Older People Care Purchasing","OP Care Purchasing (Spot Placements)","R5420"
"Wolverhampton City Council","http://opendatacommunities.org/id/metropolitan-district-council/wolverhampton","706697","Radis Community Care","1111201820181114","196.02","TPP - Home Care","190528529","16/11/2018","Older People Care Purchasing","OP Care Purchasing (Spot Placements)","R5420"
"Wolverhampton City Council","http://opendatacommunities.org/id/metropolitan-district-council/wolverhampton","706697","Radis Community Care","1111201820181114","199.65","TPP - Home Care","190528529","16/11/2018","Older People Care Purchasing","OP Care Purchasing (Spot Placements)","R5420"
"Wolverhampton City Council","http://opendatacommunities.org/id/metropolitan-district-council/wolverhampton","706697","Radis Community Care","1111201820181114","50.82","TPP - Home Care","190528529","16/11/2018","Older People Care Purchasing","OP Care Purchasing (Spot Placements)","R5420"
"Wolverhampton City Council","http://opendatacommunities.org/id/metropolitan-district-council/wolverhampton","706697","Radis Community Care","1111201820181114","177.87","TPP - Home Care","190528529","16/11/2018","Physical Disabilities Care Purchasing","PD Care Purchasing (Spot Placements)","R5420"
"Wolverhampton City Council","http://opendatacommunities.org/id/metropolitan-district-council/wolverhampton","706697","Radis Community Care","1111201820181114","148.83","TPP - Home Care","190528529","16/11/2018","Physical Disabilities Care Purchasing","PD Care Purchasing (Spot Placements)","R5420"
"Wolverhampton City Council","http://opendatacommunities.org/id/metropolitan-district-council/wolverhampton","706697","Radis Community Care","1111201820181114","50.82","TPP - Home Care","190528529","16/11/2018","Older People Care Purchasing","OP Care Purchasing (Spot Placements)","R5420"
"Wolverhampton City Council","http://opendatacommunities.org/id/metropolitan-district-council/wolverhampton","706697","Radis Community Care","1111201820181114","174.24","TPP - Home Care","190528529","16/11/2018","Older People Care Purchasing","OP Care Purchasing (Spot Placements)","R5420"
"Wolverhampton City Council","http://opendatacommunities.org/id/metropolitan-district-council/wolverhampton","706697","Radis Community Care","1111201820181114","43.56","TPP - Home Care","190528529","16/11/2018","Older People Care Purchasing","OP Care Purchasing (Spot Placements)","R5420"
"Wolverhampton City Council","http://opendatacommunities.org/id/metropolitan-district-council/wolverhampton","706697","Radis Community Care","1111201820181114","196.02","TPP - Home Care","190528529","16/11/2018","Older People Care Purchasing","OP Care Purchasing (Spot Placements)","R5420"
"Wolverhampton City Council","http://opendatacommunities.org/id/metropolitan-district-council/wolverhampton","706697","Radis Community Care","1111201820181114","14.52","TPP - Home Care","190528529","16/11/2018","Older People Care Purchasing","OP Care Purchasing (Spot Placements)","R5420"
"Wolverhampton City Council","http://opendatacommunities.org/id/metropolitan-district-council/wolverhampton","706697","Radis Community Care","1111201820181114","43.56","TPP - Home Care","190528529","16/11/2018","Older People Care Purchasing","OP Care Purchasing (Spot Placements)","R5420"
"Wolverhampton City Council","http://opendatacommunities.org/id/metropolitan-district-council/wolverhampton","706697","Radis Community Care","1111201820181114","50.82","TPP - Home Care","190528529","16/11/2018","Older People Care Purchasing","OP Care Purchasing (Spot Placements)","R5420"
"Wolverhampton City Council","http://opendatacommunities.org/id/metropolitan-district-council/wolverhampton","706697","Radis Community Care","1111201820181114","47.19","TPP - Home Care","190528529","16/11/2018","Older People Care Purchasing","OP Care Purchasing (Spot Placements)","R5420"
"Wolverhampton City Council","http://opendatacommunities.org/id/metropolitan-district-council/wolverhampton","706697","Radis Community Care","1111201820181114","50.82","TPP - Home Care","190528529","16/11/2018","Older People Care Purchasing","OP Care Purchasing (Spot Placements)","R5420"
"Wolverhampton City Council","http://opendatacommunities.org/id/metropolitan-district-council/wolverhampton","706697","Radis Community Care","1111201820181114","203.28","TPP - Home Care","190528529","16/11/2018","Older People Care Purchasing","OP Care Purchasing (Spot Placements)","R5420"
"Wolverhampton City Council","http://opendatacommunities.org/id/metropolitan-district-council/wolverhampton","706697","Radis Community Care","1111201820181114","232.32","TPP - Home Care","190528529","16/11/2018","Older People Care Purchasing","OP Care Purchasing (Spot Placements)","R5420"
"Wolverhampton City Council","http://opendatacommunities.org/id/metropolitan-district-council/wolverhampton","706697","Radis Community Care","1111201820181114","156.09","TPP - Home Care","190528529","16/11/2018","Older People Care Purchasing","OP Care Purchasing (Spot Placements)","R5420"
"Wolverhampton City Council","http://opendatacommunities.org/id/metropolitan-district-council/wolverhampton","706697","Radis Community Care","1111201820181114","50.82","TPP - Home Care","190528529","16/11/2018","Older People Care Purchasing","OP Care Purchasing (Spot Placements)","R5420"
"Wolverhampton City Council","http://opendatacommunities.org/id/metropolitan-district-council/wolverhampton","706697","Radis Community Care","1111201820181114","50.82","TPP - Home Care","190528529","16/11/2018","Older People Care Purchasing","OP Care Purchasing (Spot Placements)","R5420"
"Wolverhampton City Council","http://opendatacommunities.org/id/metropolitan-district-council/wolverhampton","706697","Radis Community Care","1111201820181114","239.58","TPP - Home Care","190528529","16/11/2018","Older People Care Purchasing","OP Care Purchasing (Spot Placements)","R5420"
"Wolverhampton City Council","http://opendatacommunities.org/id/metropolitan-district-council/wolverhampton","706697","Radis Community Care","1111201820181114","101.64","TPP - Home Care","190528529","16/11/2018","Older People Care Purchasing","OP Care Purchasing (Spot Placements)","R5420"
"Wolverhampton City Council","http://opendatacommunities.org/id/metropolitan-district-council/wolverhampton","706697","Radis Community Care","1111201820181114","188.76","TPP - Home Care","190528529","16/11/2018","Older People Care Purchasing","OP Care Purchasing (Spot Placements)","R5420"
"Wolverhampton City Council","http://opendatacommunities.org/id/metropolitan-district-council/wolverhampton","706697","Radis Community Care","M11920","2,234.40","TPP - Home Care","130234791","16/11/2018","Independent Living Service","Telecare","R5420"
"Wolverhampton City Council","http://opendatacommunities.org/id/metropolitan-district-council/wolverhampton","706697","Radis Community Care","M11248","5,460.00","TPP - Home Care","130225169","14/11/2018","Older People Provider Services","Night Visiting Service","R5420"
"Wolverhampton City Council","http://opendatacommunities.org/id/metropolitan-district-council/wolverhampton","706697","Radis Community Care","1811201820181122","94.38","TPP - Home Care","190532278","23/11/2018","Older People Care Purchasing","OP Care Purchasing (Spot Placements)","R5420"
"Wolverhampton City Council","http://opendatacommunities.org/id/metropolitan-district-council/wolverhampton","706697","Radis Community Care","1811201820181122","152.46","TPP - Home Care","190532278","23/11/2018","Physical Disabilities Care Purchasing","PD Care Purchasing (Spot Placements)","R5420"
"Wolverhampton City Council","http://opendatacommunities.org/id/metropolitan-district-council/wolverhampton","706697","Radis Community Care","1811201820181122","148.83","TPP - Home Care","190532278","23/11/2018","Physical Disabilities Care Purchasing","PD Care Purchasing (Spot Placements)","R5420"
"Wolverhampton City Council","http://opendatacommunities.org/id/metropolitan-district-council/wolverhampton","706697","Radis Community Care","1811201820181122","257.73","TPP - Home Care","190532278","23/11/2018","Older People Care Purchasing","OP Care Purchasing (Spot Placements)","R5420"
"Wolverhampton City Council","http://opendatacommunities.org/id/metropolitan-district-council/wolverhampton","706697","Radis Community Care","1811201820181122","101.64","TPP - Home Care","190532278","23/11/2018","Physical Disabilities Care Purchasing","PD Care Purchasing (Spot Placements)","R5420"
"Wolverhampton City Council","http://opendatacommunities.org/id/metropolitan-district-council/wolverhampton","706697","Radis Community Care","1811201820181122","101.64","TPP - Home Care","190532278","23/11/2018","Physical Disabilities Care Purchasing","PD Care Purchasing (Spot Placements)","R5420"
"Wolverhampton City Council","http://opendatacommunities.org/id/metropolitan-district-council/wolverhampton","706697","Radis Community Care","1811201820181122","196.02","TPP - Home Care","190532278","23/11/2018","Older People Care Purchasing","OP Care Purchasing (Spot Placements)","R5420"
"Wolverhampton City Council","http://opendatacommunities.org/id/metropolitan-district-council/wolverhampton","706697","Radis Community Care","1811201820181122","101.64","TPP - Home Care","190532278","23/11/2018","Older People Care Purchasing","OP Care Purchasing (Spot Placements)","R5420"
"Wolverhampton City Council","http://opendatacommunities.org/id/metropolitan-district-council/wolverhampton","706697","Radis Community Care","1811201820181122","101.64","TPP - Home Care","190532278","23/11/2018","Older People Care Purchasing","OP Care Purchasing (Spot Placements)","R5420"
"Wolverhampton City Council","http://opendatacommunities.org/id/metropolitan-district-council/wolverhampton","706697","Radis Community Care","1811201820181122","203.28","TPP - Home Care","190532278","23/11/2018","Older People Care Purchasing","OP Care Purchasing (Spot Placements)","R5420"
"Wolverhampton City Council","http://opendatacommunities.org/id/metropolitan-district-council/wolverhampton","706697","Radis Community Care","1811201820181122","108.90","TPP - Home Care","190532278","23/11/2018","Older People Care Purchasing","OP Care Purchasing (Spot Placements)","R5420"
"Wolverhampton City Council","http://opendatacommunities.org/id/metropolitan-district-council/wolverhampton","706697","Radis Community Care","1811201820181122","105.27","TPP - Home Care","190532278","23/11/2018","Older People Care Purchasing","OP Care Purchasing (Spot Placements)","R5420"
"Wolverhampton City Council","http://opendatacommunities.org/id/metropolitan-district-council/wolverhampton","706697","Radis Community Care","1811201820181122","196.02","TPP - Home Care","190532278","23/11/2018","Older People Care Purchasing","OP Care Purchasing (Spot Placements)","R5420"
"Wolverhampton City Council","http://opendatacommunities.org/id/metropolitan-district-council/wolverhampton","706697","Radis Community Care","1811201820181122","50.82","TPP - Home Care","190532278","23/11/2018","Older People Care Purchasing","OP Care Purchasing (Spot Placements)","R5420"
"Wolverhampton City Council","http://opendatacommunities.org/id/metropolitan-district-council/wolverhampton","706697","Radis Community Care","1811201820181122","221.43","TPP - Home Care","190532278","23/11/2018","Older People Care Purchasing","OP Care Purchasing (Spot Placements)","R5420"
"Wolverhampton City Council","http://opendatacommunities.org/id/metropolitan-district-council/wolverhampton","706697","Radis Community Care","1811201820181122","47.19","TPP - Home Care","190532278","23/11/2018","Older People Care Purchasing","OP Care Purchasing (Spot Placements)","R5420"
"Wolverhampton City Council","http://opendatacommunities.org/id/metropolitan-district-council/wolverhampton","706697","Radis Community Care","1811201820181122","177.87","TPP - Home Care","190532278","23/11/2018","Older People Care Purchasing","OP Care Purchasing (Spot Placements)","R5420"
"Wolverhampton City Council","http://opendatacommunities.org/id/metropolitan-district-council/wolverhampton","706697","Radis Community Care","1811201820181122","188.76","TPP - Home Care","190532278","23/11/2018","Older People Care Purchasing","OP Care Purchasing (Spot Placements)","R5420"
"Wolverhampton City Council","http://opendatacommunities.org/id/metropolitan-district-council/wolverhampton","706697","Radis Community Care","1811201820181122","68.97","TPP - Home Care","190532278","23/11/2018","Older People Care Purchasing","OP Care Purchasing (Spot Placements)","R5420"
"Wolverhampton City Council","http://opendatacommunities.org/id/metropolitan-district-council/wolverhampton","706697","Radis Community Care","1811201820181122","54.45","TPP - Home Care","190532278","23/11/2018","Older People Care Purchasing","OP Care Purchasing (Spot Placements)","R5420"
"Wolverhampton City Council","http://opendatacommunities.org/id/metropolitan-district-council/wolverhampton","706697","Radis Community Care","1811201820181122","54.45","TPP - Home Care","190532278","23/11/2018","Older People Care Purchasing","OP Care Purchasing (Spot Placements)","R5420"
"Wolverhampton City Council","http://opendatacommunities.org/id/metropolitan-district-council/wolverhampton","706697","Radis Community Care","1811201820181122","50.82","TPP - Home Care","190532278","23/11/2018","Older People Care Purchasing","OP Care Purchasing (Spot Placements)","R5420"
"Wolverhampton City Council","http://opendatacommunities.org/id/metropolitan-district-council/wolverhampton","706697","Radis Community Care","1811201820181122","50.82","TPP - Home Care","190532278","23/11/2018","Older People Care Purchasing","OP Care Purchasing (Spot Placements)","R5420"
"Wolverhampton City Council","http://opendatacommunities.org/id/metropolitan-district-council/wolverhampton","706697","Radis Community Care","1811201820181122","199.65","TPP - Home Care","190532278","23/11/2018","Older People Care Purchasing","OP Care Purchasing (Spot Placements)","R5420"
"Wolverhampton City Council","http://opendatacommunities.org/id/metropolitan-district-council/wolverhampton","706697","Radis Community Care","1811201820181122","65.34","TPP - Home Care","190532278","23/11/2018","Older People Care Purchasing","OP Care Purchasing (Spot Placements)","R5420"
"Wolverhampton City Council","http://opendatacommunities.org/id/metropolitan-district-council/wolverhampton","706697","Radis Community Care","1811201820181122","39.93","TPP - Home Care","190532278","23/11/2018","Older People Care Purchasing","OP Care Purchasing (Spot Placements)","R5420"
"Wolverhampton City Council","http://opendatacommunities.org/id/metropolitan-district-council/wolverhampton","706697","Radis Community Care","1811201820181122","152.46","TPP - Home Care","190532278","23/11/2018","Older People Care Purchasing","OP Care Purchasing (Spot Placements)","R5420"
"Wolverhampton City Council","http://opendatacommunities.org/id/metropolitan-district-council/wolverhampton","706697","Radis Community Care","1811201820181122","101.64","TPP - Home Care","190532278","23/11/2018","Older People Care Purchasing","OP Care Purchasing (Spot Placements)","R5420"
"Wolverhampton City Council","http://opendatacommunities.org/id/metropolitan-district-council/wolverhampton","706697","Radis Community Care","1811201820181122","69.00","TPP - Carer Support Service","190532278","23/11/2018","Carer Support","CS Care Purchasing (Spot Placements)","R5421"
"Wolverhampton City Council","http://opendatacommunities.org/id/metropolitan-district-council/wolverhampton","706697","Radis Community Care","1811201820181122","58.08","TPP - Home Care","190532278","23/11/2018","Physical Disabilities Care Purchasing","PD Care Purchasing (Spot Placements)","R5420"
"Wolverhampton City Council","http://opendatacommunities.org/id/metropolitan-district-council/wolverhampton","706697","Radis Community Care","1811201820181122","10.89","TPP - Home Care","190532278","23/11/2018","Older People Care Purchasing","OP Care Purchasing (Spot Placements)","R5420"
"Wolverhampton City Council","http://opendatacommunities.org/id/metropolitan-district-council/wolverhampton","706697","Radis Community Care","1811201820181122","21.78","TPP - Home Care","190532278","23/11/2018","Physical Disabilities Care Purchasing","PD Care Purchasing (Spot Placements)","R5420"
"Wolverhampton City Council","http://opendatacommunities.org/id/metropolitan-district-council/wolverhampton","706697","Radis Community Care","1811201820181122","43.56","TPP - Home Care","190532278","23/11/2018","Older People Care Purchasing","OP Care Purchasing (Spot Placements)","R5420"
"Wolverhampton City Council","http://opendatacommunities.org/id/metropolitan-district-council/wolverhampton","706697","Radis Community Care","1811201820181122","25.41","TPP - Home Care","190532278","23/11/2018","Older People Care Purchasing","OP Care Purchasing (Spot Placements)","R5420"
"Wolverhampton City Council","http://opendatacommunities.org/id/metropolitan-district-council/wolverhampton","706697","Radis Community Care","1811201820181122","192.39","TPP - Home Care","190532278","23/11/2018","Older People Care Purchasing","OP Care Purchasing (Spot Placements)","R5420"
"Wolverhampton City Council","http://opendatacommunities.org/id/metropolitan-district-council/wolverhampton","706697","Radis Community Care","1811201820181122","210.54","TPP - Home Care","190532278","23/11/2018","Older People Care Purchasing","OP Care Purchasing (Spot Placements)","R5420"
"Wolverhampton City Council","http://opendatacommunities.org/id/metropolitan-district-council/wolverhampton","706697","Radis Community Care","1811201820181122","185.13","TPP - Home Care","190532278","23/11/2018","Older People Care Purchasing","OP Care Purchasing (Spot Placements)","R5420"
"Wolverhampton City Council","http://opendatacommunities.org/id/metropolitan-district-council/wolverhampton","706697","Radis Community Care","1811201820181122","54.45","TPP - Home Care","190532278","23/11/2018","Older People Care Purchasing","OP Care Purchasing (Spot Placements)","R5420"
"Wolverhampton City Council","http://opendatacommunities.org/id/metropolitan-district-council/wolverhampton","706697","Radis Community Care","1811201820181122","105.27","TPP - Home Care","190532278","23/11/2018","Older People Care Purchasing","OP Care Purchasing (Spot Placements)","R5420"
"Wolverhampton City Council","http://opendatacommunities.org/id/metropolitan-district-council/wolverhampton","706697","Radis Community Care","1811201820181122","232.32","TPP - Home Care","190532278","23/11/2018","Older People Care Purchasing","OP Care Purchasing (Spot Placements)","R5420"
"Wolverhampton City Council","http://opendatacommunities.org/id/metropolitan-district-council/wolverhampton","706697","Radis Community Care","1811201820181122","141.57","TPP - Home Care","190532278","23/11/2018","Physical Disabilities Care Purchasing","PD Care Purchasing (Spot Placements)","R5420"
"Wolverhampton City Council","http://opendatacommunities.org/id/metropolitan-district-council/wolverhampton","706697","Radis Community Care","1811201820181122","134.31","TPP - Home Care","190532278","23/11/2018","Physical Disabilities Care Purchasing","PD Care Purchasing (Spot Placements)","R5420"
"Wolverhampton City Council","http://opendatacommunities.org/id/metropolitan-district-council/wolverhampton","706697","Radis Community Care","1811201820181122","214.17","TPP - Home Care","190532278","23/11/2018","Older People Care Purchasing","OP Care Purchasing (Spot Placements)","R5420"
"Wolverhampton City Council","http://opendatacommunities.org/id/metropolitan-district-council/wolverhampton","706697","Radis Community Care","1811201820181122","101.64","TPP - Home Care","190532278","23/11/2018","Older People Care Purchasing","OP Care Purchasing (Spot Placements)","R5420"
"Wolverhampton City Council","http://opendatacommunities.org/id/metropolitan-district-council/wolverhampton","706697","Radis Community Care","1811201820181122","54.45","TPP - Home Care","190532278","23/11/2018","Older People Care Purchasing","OP Care Purchasing (Spot Placements)","R5420"
"Wolverhampton City Council","http://opendatacommunities.org/id/metropolitan-district-council/wolverhampton","706697","Radis Community Care","1811201820181122","50.82","TPP - Home Care","190532278","23/11/2018","Older People Care Purchasing","OP Care Purchasing (Spot Placements)","R5420"
"Wolverhampton City Council","http://opendatacommunities.org/id/metropolitan-district-council/wolverhampton","706697","Radis Community Care","1811201820181122","105.27","TPP - Home Care","190532278","23/11/2018","Older People Care Purchasing","OP Care Purchasing (Spot Placements)","R5420"
"Wolverhampton City Council","http://opendatacommunities.org/id/metropolitan-district-council/wolverhampton","706697","Radis Community Care","1811201820181122","228.69","TPP - Home Care","190532278","23/11/2018","Older People Care Purchasing","OP Care Purchasing (Spot Placements)","R5420"
"Wolverhampton City Council","http://opendatacommunities.org/id/metropolitan-district-council/wolverhampton","706697","Radis Community Care","1811201820181122","54.45","TPP - Home Care","190532278","23/11/2018","Physical Disabilities Care Purchasing","PD Care Purchasing (Spot Placements)","R5420"
"Wolverhampton City Council","http://opendatacommunities.org/id/metropolitan-district-council/wolverhampton","706697","Radis Community Care","1811201820181122","206.91","TPP - Home Care","190532278","23/11/2018","Older People Care Purchasing","OP Care Purchasing (Spot Placements)","R5420"
"Wolverhampton City Council","http://opendatacommunities.org/id/metropolitan-district-council/wolverhampton","706697","Radis Community Care","1811201820181122","210.54","TPP - Home Care","190532278","23/11/2018","Older People Care Purchasing","OP Care Purchasing (Spot Placements)","R5420"
"Wolverhampton City Council","http://opendatacommunities.org/id/metropolitan-district-council/wolverhampton","706697","Radis Community Care","1811201820181122","148.83","TPP - Home Care","190532278","23/11/2018","Older People Care Purchasing","OP Care Purchasing (Spot Placements)","R5420"
"Wolverhampton City Council","http://opendatacommunities.org/id/metropolitan-district-council/wolverhampton","706697","Radis Community Care","1811201820181122","137.94","TPP - Home Care","190532278","23/11/2018","Older People Care Purchasing","OP Care Purchasing (Spot Placements)","R5420"
"Wolverhampton City Council","http://opendatacommunities.org/id/metropolitan-district-council/wolverhampton","706697","Radis Community Care","1811201820181122","196.02","TPP - Home Care","190532278","23/11/2018","Older People Care Purchasing","OP Care Purchasing (Spot Placements)","R5420"
"Wolverhampton City Council","http://opendatacommunities.org/id/metropolitan-district-council/wolverhampton","706697","Radis Community Care","1811201820181122","47.19","TPP - Home Care","190532278","23/11/2018","Older People Care Purchasing","OP Care Purchasing (Spot Placements)","R5420"
"Wolverhampton City Council","http://opendatacommunities.org/id/metropolitan-district-council/wolverhampton","706697","Radis Community Care","1811201820181122","50.82","TPP - Home Care","190532278","23/11/2018","Physical Disabilities Care Purchasing","PD Care Purchasing (Spot Placements)","R5420"
"Wolverhampton City Council","http://opendatacommunities.org/id/metropolitan-district-council/wolverhampton","706697","Radis Community Care","1811201820181122","50.82","TPP - Home Care","190532278","23/11/2018","Physical Disabilities Care Purchasing","PD Care Purchasing (Spot Placements)","R5420"
"Wolverhampton City Council","http://opendatacommunities.org/id/metropolitan-district-council/wolverhampton","706697","Radis Community Care","1811201820181122","50.82","TPP - Home Care","190532278","23/11/2018","Physical Disabilities Care Purchasing","PD Care Purchasing (Spot Placements)","R5420"
"Wolverhampton City Council","http://opendatacommunities.org/id/metropolitan-district-council/wolverhampton","706697","Radis Community Care","1811201820181122","101.64","TPP - Home Care","190532278","23/11/2018","Older People Care Purchasing","OP Care Purchasing (Spot Placements)","R5420"
"Wolverhampton City Council","http://opendatacommunities.org/id/metropolitan-district-council/wolverhampton","706697","Radis Community Care","1811201820181122","94.38","TPP - Home Care","190532278","23/11/2018","Older People Care Purchasing","OP Care Purchasing (Spot Placements)","R5420"
"Wolverhampton City Council","http://opendatacommunities.org/id/metropolitan-district-council/wolverhampton","706697","Radis Community Care","1811201820181122","148.83","TPP - Home Care","190532278","23/11/2018","Older People Care Purchasing","OP Care Purchasing (Spot Placements)","R5420"
"Wolverhampton City Council","http://opendatacommunities.org/id/metropolitan-district-council/wolverhampton","706697","Radis Community Care","1811201820181122","174.24","TPP - Home Care","190532278","23/11/2018","Older People Care Purchasing","OP Care Purchasing (Spot Placements)","R5420"
"Wolverhampton City Council","http://opendatacommunities.org/id/metropolitan-district-council/wolverhampton","706697","Radis Community Care","1811201820181122","166.98","TPP - Home Care","190532278","23/11/2018","Older People Care Purchasing","OP Care Purchasing (Spot Placements)","R5420"
"Wolverhampton City Council","http://opendatacommunities.org/id/metropolitan-district-council/wolverhampton","706697","Radis Community Care","1811201820181122","228.69","TPP - Home Care","190532278","23/11/2018","Older People Care Purchasing","OP Care Purchasing (Spot Placements)","R5420"
"Wolverhampton City Council","http://opendatacommunities.org/id/metropolitan-district-council/wolverhampton","706697","Radis Community Care","2511201820181129","196.02","TPP - Home Care","190535564","30/11/2018","Older People Care Purchasing","OP Care Purchasing (Spot Placements)","R5420"
"Wolverhampton City Council","http://opendatacommunities.org/id/metropolitan-district-council/wolverhampton","706697","Radis Community Care","2511201820181129","203.28","TPP - Home Care","190535564","30/11/2018","Older People Care Purchasing","OP Care Purchasing (Spot Placements)","R5420"
"Wolverhampton City Council","http://opendatacommunities.org/id/metropolitan-district-council/wolverhampton","706697","Radis Community Care","2511201820181129","54.45","TPP - Home Care","190535564","30/11/2018","Older People Care Purchasing","OP Care Purchasing (Spot Placements)","R5420"
"Wolverhampton City Council","http://opendatacommunities.org/id/metropolitan-district-council/wolverhampton","706697","Radis Community Care","2511201820181129","58.08","TPP - Home Care","190535564","30/11/2018","Physical Disabilities Care Purchasing","PD Care Purchasing (Spot Placements)","R5420"
"Wolverhampton City Council","http://opendatacommunities.org/id/metropolitan-district-council/wolverhampton","706697","Radis Community Care","2511201820181129","43.56","TPP - Home Care","190535564","30/11/2018","Physical Disabilities Care Purchasing","PD Care Purchasing (Spot Placements)","R5420"
"Wolverhampton City Council","http://opendatacommunities.org/id/metropolitan-district-council/wolverhampton","706697","Radis Community Care","2511201820181129","50.82","TPP - Home Care","190535564","30/11/2018","Physical Disabilities Care Purchasing","PD Care Purchasing (Spot Placements)","R5420"
"Wolverhampton City Council","http://opendatacommunities.org/id/metropolitan-district-council/wolverhampton","706697","Radis Community Care","2511201820181129","108.90","TPP - Home Care","190535564","30/11/2018","Older People Care Purchasing","OP Care Purchasing (Spot Placements)","R5420"
"Wolverhampton City Council","http://opendatacommunities.org/id/metropolitan-district-council/wolverhampton","706697","Radis Community Care","2511201820181129","14.52","TPP - Home Care","190535564","30/11/2018","Older People Care Purchasing","OP Care Purchasing (Spot Placements)","R5420"
"Wolverhampton City Council","http://opendatacommunities.org/id/metropolitan-district-council/wolverhampton","706697","Radis Community Care","2511201820181129","588.06","TPP - Home Care","190535564","30/11/2018","Physical Disabilities Care Purchasing","PD Care Purchasing (Spot Placements)","R5420"
"Wolverhampton City Council","http://opendatacommunities.org/id/metropolitan-district-council/wolverhampton","706697","Radis Community Care","2511201820181129","388.41","TPP - Home Care","190535564","30/11/2018","Physical Disabilities Care Purchasing","PD Care Purchasing (Spot Placements)","R5420"
"Wolverhampton City Council","http://opendatacommunities.org/id/metropolitan-district-council/wolverhampton","706697","Radis Community Care","2511201820181129","79.86","TPP - Home Care","190535564","30/11/2018","Learning Disabilities Care Purchasing","LD Care Purchasing (Spot Placements)","R5420"
"Wolverhampton City Council","http://opendatacommunities.org/id/metropolitan-district-council/wolverhampton","706697","Radis Community Care","2511201820181129","58.08","TPP - Home Care","190535564","30/11/2018","Older People Care Purchasing","OP Care Purchasing (Spot Placements)","R5420"
"Wolverhampton City Council","http://opendatacommunities.org/id/metropolitan-district-council/wolverhampton","706697","Radis Community Care","2511201820181129","10.89","TPP - Home Care","190535564","30/11/2018","Older People Care Purchasing","OP Care Purchasing (Spot Placements)","R5420"
"Wolverhampton City Council","http://opendatacommunities.org/id/metropolitan-district-council/wolverhampton","706697","Radis Community Care","2511201820181129","101.64","TPP - Home Care","190535564","30/11/2018","Older People Care Purchasing","OP Care Purchasing (Spot Placements)","R5420"
"Wolverhampton City Council","http://opendatacommunities.org/id/metropolitan-district-council/wolverhampton","706697","Radis Community Care","2511201820181129","50.82","TPP - Home Care","190535564","30/11/2018","Older People Care Purchasing","OP Care Purchasing (Spot Placements)","R5420"
"Wolverhampton City Council","http://opendatacommunities.org/id/metropolitan-district-council/wolverhampton","706697","Radis Community Care","2511201820181129","50.82","TPP - Home Care","190535564","30/11/2018","Older People Care Purchasing","OP Care Purchasing (Spot Placements)","R5420"
"Wolverhampton City Council","http://opendatacommunities.org/id/metropolitan-district-council/wolverhampton","706697","Radis Community Care","2511201820181129","105.27","TPP - Home Care","190535564","30/11/2018","Older People Care Purchasing","OP Care Purchasing (Spot Placements)","R5420"
"Wolverhampton City Council","http://opendatacommunities.org/id/metropolitan-district-council/wolverhampton","706697","Radis Community Care","2511201820181129","21.78","TPP - Home Care","190535564","30/11/2018","Physical Disabilities Care Purchasing","PD Care Purchasing (Spot Placements)","R5420"
"Wolverhampton City Council","http://opendatacommunities.org/id/metropolitan-district-council/wolverhampton","706697","Radis Community Care","2511201820181129","185.13","TPP - Home Care","190535564","30/11/2018","Physical Disabilities Care Purchasing","PD Care Purchasing (Spot Placements)","R5420"
"Wolverhampton City Council","http://opendatacommunities.org/id/metropolitan-district-council/wolverhampton","706697","Radis Community Care","2511201820181129","58.08","TPP - Home Care","190535564","30/11/2018","Physical Disabilities Care Purchasing","PD Care Purchasing (Spot Placements)","R5420"
"Wolverhampton City Council","http://opendatacommunities.org/id/metropolitan-district-council/wolverhampton","706697","Radis Community Care","2511201820181129","79.86","TPP - Home Care","190535564","30/11/2018","Physical Disabilities Care Purchasing","PD Care Purchasing (Spot Placements)","R5420"
"Wolverhampton City Council","http://opendatacommunities.org/id/metropolitan-district-council/wolverhampton","706697","Radis Community Care","2511201820181129","72.60","TPP - Home Care","190535564","30/11/2018","Physical Disabilities Care Purchasing","PD Care Purchasing (Spot Placements)","R5420"
"Wolverhampton City Council","http://opendatacommunities.org/id/metropolitan-district-council/wolverhampton","706697","Radis Community Care","2511201820181129","32.67","TPP - Home Care","190535564","30/11/2018","Physical Disabilities Care Purchasing","PD Care Purchasing (Spot Placements)","R5420"
"Wolverhampton City Council","http://opendatacommunities.org/id/metropolitan-district-council/wolverhampton","706697","Radis Community Care","2511201820181129","232.32","TPP - Home Care","190535564","30/11/2018","Older People Care Purchasing","OP Care Purchasing (Spot Placements)","R5420"
"Wolverhampton City Council","http://opendatacommunities.org/id/metropolitan-district-council/wolverhampton","706697","Radis Community Care","2511201820181129","214.17","TPP - Home Care","190535564","30/11/2018","Older People Care Purchasing","OP Care Purchasing (Spot Placements)","R5420"
"Wolverhampton City Council","http://opendatacommunities.org/id/metropolitan-district-council/wolverhampton","706697","Radis Community Care","2511201820181129","225.06","TPP - Home Care","190535564","30/11/2018","Older People Care Purchasing","OP Care Purchasing (Spot Placements)","R5420"
"Wolverhampton City Council","http://opendatacommunities.org/id/metropolitan-district-council/wolverhampton","706697","Radis Community Care","1411201820181108","130.68","TPP - Home Care","190525781","09/11/2018","Physical Disabilities Care Purchasing","PD Care Purchasing (Spot Placements)","R5420"
"Wolverhampton City Council","http://opendatacommunities.org/id/metropolitan-district-council/wolverhampton","706697","Radis Community Care","1411201820181108","21.78","TPP - Home Care","190525781","09/11/2018","Older People Care Purchasing","OP Care Purchasing (Spot Placements)","R5420"
"Wolverhampton City Council","http://opendatacommunities.org/id/metropolitan-district-council/wolverhampton","706697","Radis Community Care","1411201820181108","199.65","TPP - Home Care","190525781","09/11/2018","Older People Care Purchasing","OP Care Purchasing (Spot Placements)","R5420"
"Wolverhampton City Council","http://opendatacommunities.org/id/metropolitan-district-council/wolverhampton","706697","Radis Community Care","1411201820181108","188.76","TPP - Home Care","190525781","09/11/2018","Older People Care Purchasing","OP Care Purchasing (Spot Placements)","R5420"
"Wolverhampton City Council","http://opendatacommunities.org/id/metropolitan-district-council/wolverhampton","706697","Radis Community Care","1411201820181108","54.45","TPP - Home Care","190525781","09/11/2018","Older People Care Purchasing","OP Care Purchasing (Spot Placements)","R5420"
"Wolverhampton City Council","http://opendatacommunities.org/id/metropolitan-district-council/wolverhampton","706697","Radis Community Care","1411201820181108","50.82","TPP - Home Care","190525781","09/11/2018","Physical Disabilities Care Purchasing","PD Care Purchasing (Spot Placements)","R5420"
"Wolverhampton City Council","http://opendatacommunities.org/id/metropolitan-district-council/wolverhampton","706697","Radis Community Care","1411201820181108","50.82","TPP - Home Care","190525781","09/11/2018","Physical Disabilities Care Purchasing","PD Care Purchasing (Spot Placements)","R5420"
"Wolverhampton City Council","http://opendatacommunities.org/id/metropolitan-district-council/wolverhampton","706697","Radis Community Care","1411201820181108","105.27","TPP - Home Care","190525781","09/11/2018","Older People Care Purchasing","OP Care Purchasing (Spot Placements)","R5420"
"Wolverhampton City Council","http://opendatacommunities.org/id/metropolitan-district-council/wolverhampton","706697","Radis Community Care","1411201820181108","29.04","TPP - Home Care","190525781","09/11/2018","Older People Care Purchasing","OP Care Purchasing (Spot Placements)","R5420"
"Wolverhampton City Council","http://opendatacommunities.org/id/metropolitan-district-council/wolverhampton","706697","Radis Community Care","1411201820181108","526.35","TPP - Home Care","190525781","09/11/2018","Physical Disabilities Care Purchasing","PD Care Purchasing (Spot Placements)","R5420"
"Wolverhampton City Council","http://opendatacommunities.org/id/metropolitan-district-council/wolverhampton","706697","Radis Community Care","1411201820181108","421.08","TPP - Home Care","190525781","09/11/2018","Physical Disabilities Care Purchasing","PD Care Purchasing (Spot Placements)","R5420"
"Wolverhampton City Council","http://opendatacommunities.org/id/metropolitan-district-council/wolverhampton","706697","Radis Community Care","1411201820181108","76.23","TPP - Home Care","190525781","09/11/2018","Learning Disabilities Care Purchasing","LD Care Purchasing (Spot Placements)","R5420"
"Wolverhampton City Council","http://opendatacommunities.org/id/metropolitan-district-council/wolverhampton","706697","Radis Community Care","1411201820181108","54.45","TPP - Home Care","190525781","09/11/2018","Older People Care Purchasing","OP Care Purchasing (Spot Placements)","R5420"
"Wolverhampton City Council","http://opendatacommunities.org/id/metropolitan-district-council/wolverhampton","706697","Radis Community Care","1411201820181108","14.52","TPP - Home Care","190525781","09/11/2018","Older People Care Purchasing","OP Care Purchasing (Spot Placements)","R5420"
"Wolverhampton City Council","http://opendatacommunities.org/id/metropolitan-district-council/wolverhampton","706697","Radis Community Care","1411201820181108","98.01","TPP - Home Care","190525781","09/11/2018","Older People Care Purchasing","OP Care Purchasing (Spot Placements)","R5420"
"Wolverhampton City Council","http://opendatacommunities.org/id/metropolitan-district-council/wolverhampton","706697","Radis Community Care","1411201820181108","50.82","TPP - Home Care","190525781","09/11/2018","Older People Care Purchasing","OP Care Purchasing (Spot Placements)","R5420"
"Wolverhampton City Council","http://opendatacommunities.org/id/metropolitan-district-council/wolverhampton","706697","Radis Community Care","1411201820181108","50.82","TPP - Home Care","190525781","09/11/2018","Older People Care Purchasing","OP Care Purchasing (Spot Placements)","R5420"
"Wolverhampton City Council","http://opendatacommunities.org/id/metropolitan-district-council/wolverhampton","706697","Radis Community Care","1411201820181108","101.64","TPP - Home Care","190525781","09/11/2018","Older People Care Purchasing","OP Care Purchasing (Spot Placements)","R5420"
"Wolverhampton City Council","http://opendatacommunities.org/id/metropolitan-district-council/wolverhampton","706697","Radis Community Care","1411201820181108","43.56","TPP - Home Care","190525781","09/11/2018","Older People Care Purchasing","OP Care Purchasing (Spot Placements)","R5420"
"Wolverhampton City Council","http://opendatacommunities.org/id/metropolitan-district-council/wolverhampton","706697","Radis Community Care","1411201820181108","47.19","TPP - Home Care","190525781","09/11/2018","Older People Care Purchasing","OP Care Purchasing (Spot Placements)","R5420"
"Wolverhampton City Council","http://opendatacommunities.org/id/metropolitan-district-council/wolverhampton","706697","Radis Community Care","1411201820181108","50.82","TPP - Home Care","190525781","09/11/2018","Older People Care Purchasing","OP Care Purchasing (Spot Placements)","R5420"
"Wolverhampton City Council","http://opendatacommunities.org/id/metropolitan-district-council/wolverhampton","706697","Radis Community Care","1411201820181108","50.82","TPP - Home Care","190525781","09/11/2018","Older People Care Purchasing","OP Care Purchasing (Spot Placements)","R5420"
"Wolverhampton City Council","http://opendatacommunities.org/id/metropolitan-district-council/wolverhampton","706697","Radis Community Care","1411201820181108","54.45","TPP - Home Care","190525781","09/11/2018","Older People Care Purchasing","OP Care Purchasing (Spot Placements)","R5420"
"Wolverhampton City Council","http://opendatacommunities.org/id/metropolitan-district-council/wolverhampton","706697","Radis Community Care","1411201820181108","257.73","TPP - Home Care","190525781","09/11/2018","Older People Care Purchasing","OP Care Purchasing (Spot Placements)","R5420"
"Wolverhampton City Council","http://opendatacommunities.org/id/metropolitan-district-council/wolverhampton","706697","Radis Community Care","1411201820181108","101.64","TPP - Home Care","190525781","09/11/2018","Older People Care Purchasing","OP Care Purchasing (Spot Placements)","R5420"
"Wolverhampton City Council","http://opendatacommunities.org/id/metropolitan-district-council/wolverhampton","706697","Radis Community Care","1411201820181108","21.78","TPP - Home Care","190525781","09/11/2018","Older People Care Purchasing","OP Care Purchasing (Spot Placements)","R5420"
"Wolverhampton City Council","http://opendatacommunities.org/id/metropolitan-district-council/wolverhampton","706697","Radis Community Care","1411201820181108","185.13","TPP - Home Care","190525781","09/11/2018","Older People Care Purchasing","OP Care Purchasing (Spot Placements)","R5420"
"Wolverhampton City Council","http://opendatacommunities.org/id/metropolitan-district-council/wolverhampton","706697","Radis Community Care","1411201820181108","156.09","TPP - Home Care","190525781","09/11/2018","Older People Care Purchasing","OP Care Purchasing (Spot Placements)","R5420"
"Wolverhampton City Council","http://opendatacommunities.org/id/metropolitan-district-council/wolverhampton","706697","Radis Community Care","1411201820181108","90.75","TPP - Home Care","190525781","09/11/2018","Older People Care Purchasing","OP Care Purchasing (Spot Placements)","R5420"
"Wolverhampton City Council","http://opendatacommunities.org/id/metropolitan-district-council/wolverhampton","706697","Radis Community Care","1411201820181108","37.95","TPP - Carer Support Service","190525781","09/11/2018","Carer Support","CS Care Purchasing (Spot Placements)","R5421"
"Wolverhampton City Council","http://opendatacommunities.org/id/metropolitan-district-council/wolverhampton","706697","Radis Community Care","1411201820181108","72.60","TPP - Home Care","190525781","09/11/2018","Physical Disabilities Care Purchasing","PD Care Purchasing (Spot Placements)","R5420"
"Wolverhampton City Council","http://opendatacommunities.org/id/metropolitan-district-council/wolverhampton","706697","Radis Community Care","1411201820181108","90.75","TPP - Home Care","190525781","09/11/2018","Older People Care Purchasing","OP Care Purchasing (Spot Placements)","R5420"
"Wolverhampton City Council","http://opendatacommunities.org/id/metropolitan-district-council/wolverhampton","706697","Radis Community Care","1411201820181108","101.64","TPP - Home Care","190525781","09/11/2018","Older People Care Purchasing","OP Care Purchasing (Spot Placements)","R5420"
"Wolverhampton City Council","http://opendatacommunities.org/id/metropolitan-district-council/wolverhampton","706697","Radis Community Care","1411201820181108","98.01","TPP - Home Care","190525781","09/11/2018","Older People Care Purchasing","OP Care Purchasing (Spot Placements)","R5420"
"Wolverhampton City Council","http://opendatacommunities.org/id/metropolitan-district-council/wolverhampton","706697","Radis Community Care","1411201820181108","69.00","TPP - Carer Support Service","190525781","09/11/2018","Carer Support","CS Care Purchasing (Spot Placements)","R5421"
"Wolverhampton City Council","http://opendatacommunities.org/id/metropolitan-district-council/wolverhampton","706697","Radis Community Care","1411201820181108","210.54","TPP - Home Care","190525781","09/11/2018","Older People Care Purchasing","OP Care Purchasing (Spot Placements)","R5420"
"Wolverhampton City Council","http://opendatacommunities.org/id/metropolitan-district-council/wolverhampton","706697","Radis Community Care","1411201820181108","76.23","TPP - Home Care","190525781","09/11/2018","Older People Care Purchasing","OP Care Purchasing (Spot Placements)","R5420"
"Wolverhampton City Council","http://opendatacommunities.org/id/metropolitan-district-council/wolverhampton","706697","Radis Community Care","1411201820181108","41.40","TPP - Carer Support Service","190525781","09/11/2018","Carer Support","CS Care Purchasing (Spot Placements)","R5421"
"Wolverhampton City Council","http://opendatacommunities.org/id/metropolitan-district-council/wolverhampton","706697","Radis Community Care","1411201820181108","206.91","TPP - Home Care","190525781","09/11/2018","Older People Care Purchasing","OP Care Purchasing (Spot Placements)","R5420"
"Wolverhampton City Council","http://opendatacommunities.org/id/metropolitan-district-council/wolverhampton","706697","Radis Community Care","1411201820181108","101.64","TPP - Home Care","190525781","09/11/2018","Older People Care Purchasing","OP Care Purchasing (Spot Placements)","R5420"
"Wolverhampton City Council","http://opendatacommunities.org/id/metropolitan-district-council/wolverhampton","706697","Radis Community Care","1411201820181108","152.46","TPP - Home Care","190525781","09/11/2018","Older People Care Purchasing","OP Care Purchasing (Spot Placements)","R5420"
"Wolverhampton City Council","http://opendatacommunities.org/id/metropolitan-district-council/wolverhampton","706697","Radis Community Care","1411201820181108","101.64","TPP - Home Care","190525781","09/11/2018","Older People Care Purchasing","OP Care Purchasing (Spot Placements)","R5420"
"Wolverhampton City Council","http://opendatacommunities.org/id/metropolitan-district-council/wolverhampton","706697","Radis Community Care","1411201820181108","152.46","TPP - Home Care","190525781","09/11/2018","Physical Disabilities Care Purchasing","PD Care Purchasing (Spot Placements)","R5420"
"Wolverhampton City Council","http://opendatacommunities.org/id/metropolitan-district-council/wolverhampton","706697","Radis Community Care","1411201820181108","152.46","TPP - Home Care","190525781","09/11/2018","Physical Disabilities Care Purchasing","PD Care Purchasing (Spot Placements)","R5420"
"Wolverhampton City Council","http://opendatacommunities.org/id/metropolitan-district-council/wolverhampton","706697","Radis Community Care","1411201820181108","264.99","TPP - Home Care","190525781","09/11/2018","Older People Care Purchasing","OP Care Purchasing (Spot Placements)","R5420"
"Wolverhampton City Council","http://opendatacommunities.org/id/metropolitan-district-council/wolverhampton","706697","Radis Community Care","1411201820181108","101.64","TPP - Home Care","190525781","09/11/2018","Physical Disabilities Care Purchasing","PD Care Purchasing (Spot Placements)","R5420"
"Wolverhampton City Council","http://opendatacommunities.org/id/metropolitan-district-council/wolverhampton","706697","Radis Community Care","1411201820181108","101.64","TPP - Home Care","190525781","09/11/2018","Physical Disabilities Care Purchasing","PD Care Purchasing (Spot Placements)","R5420"
"Wolverhampton City Council","http://opendatacommunities.org/id/metropolitan-district-council/wolverhampton","706697","Radis Community Care","1411201820181108","203.28","TPP - Home Care","190525781","09/11/2018","Older People Care Purchasing","OP Care Purchasing (Spot Placements)","R5420"
"Wolverhampton City Council","http://opendatacommunities.org/id/metropolitan-district-council/wolverhampton","706697","Radis Community Care","1411201820181108","105.27","TPP - Home Care","190525781","09/11/2018","Older People Care Purchasing","OP Care Purchasing (Spot Placements)","R5420"
"Wolverhampton City Council","http://opendatacommunities.org/id/metropolitan-district-council/wolverhampton","706697","Radis Community Care","1411201820181108","101.64","TPP - Home Care","190525781","09/11/2018","Older People Care Purchasing","OP Care Purchasing (Spot Placements)","R5420"
"Wolverhampton City Council","http://opendatacommunities.org/id/metropolitan-district-council/wolverhampton","706697","Radis Community Care","1411201820181108","21.78","TPP - Home Care","190525781","09/11/2018","Physical Disabilities Care Purchasing","PD Care Purchasing (Spot Placements)","R5420"
"Wolverhampton City Council","http://opendatacommunities.org/id/metropolitan-district-council/wolverhampton","706697","Radis Community Care","1411201820181108","185.13","TPP - Home Care","190525781","09/11/2018","Physical Disabilities Care Purchasing","PD Care Purchasing (Spot Placements)","R5420"
"Wolverhampton City Council","http://opendatacommunities.org/id/metropolitan-district-council/wolverhampton","706697","Radis Community Care","1411201820181108","58.08","TPP - Home Care","190525781","09/11/2018","Physical Disabilities Care Purchasing","PD Care Purchasing (Spot Placements)","R5420"
"Wolverhampton City Council","http://opendatacommunities.org/id/metropolitan-district-council/wolverhampton","706697","Radis Community Care","1411201820181108","39.93","TPP - Home Care","190525781","09/11/2018","Older People Care Purchasing","OP Care Purchasing (Spot Placements)","R5420"
"Wolverhampton City Council","http://opendatacommunities.org/id/metropolitan-district-council/wolverhampton","706697","Radis Community Care","1411201820181108","32.67","TPP - Home Care","190525781","09/11/2018","Physical Disabilities Care Purchasing","PD Care Purchasing (Spot Placements)","R5420"
"Wolverhampton City Council","http://opendatacommunities.org/id/metropolitan-district-council/wolverhampton","706697","Radis Community Care","1411201820181108","228.69","TPP - Home Care","190525781","09/11/2018","Older People Care Purchasing","OP Care Purchasing (Spot Placements)","R5420"
"Wolverhampton City Council","http://opendatacommunities.org/id/metropolitan-district-council/wolverhampton","706697","Radis Community Care","1411201820181108","210.54","TPP - Home Care","190525781","09/11/2018","Older People Care Purchasing","OP Care Purchasing (Spot Placements)","R5420"
"Wolverhampton City Council","http://opendatacommunities.org/id/metropolitan-district-council/wolverhampton","706697","Radis Community Care","1411201820181108","235.95","TPP - Home Care","190525781","09/11/2018","Older People Care Purchasing","OP Care Purchasing (Spot Placements)","R5420"
"Wolverhampton City Council","http://opendatacommunities.org/id/metropolitan-district-council/wolverhampton","706697","Radis Community Care","1411201820181108","163.35","TPP - Home Care","190525781","09/11/2018","Older People Care Purchasing","OP Care Purchasing (Spot Placements)","R5420"
"Wolverhampton City Council","http://opendatacommunities.org/id/metropolitan-district-council/wolverhampton","706697","Radis Community Care","1411201820181108","7.26","TPP - Home Care","190525781","09/11/2018","Older People Care Purchasing","OP Care Purchasing (Spot Placements)","R5420"
"Wolverhampton City Council","http://opendatacommunities.org/id/metropolitan-district-council/wolverhampton","706697","Radis Community Care","1411201820181108","54.45","TPP - Home Care","190525781","09/11/2018","Older People Care Purchasing","OP Care Purchasing (Spot Placements)","R5420"
"Wolverhampton City Council","http://opendatacommunities.org/id/metropolitan-district-council/wolverhampton","706697","Radis Community Care","1411201820181108","76.23","TPP - Home Care","190525781","09/11/2018","Older People Care Purchasing","OP Care Purchasing (Spot Placements)","R5420"
"Wolverhampton City Council","http://opendatacommunities.org/id/metropolitan-district-council/wolverhampton","706697","Radis Community Care","1411201820181108","98.01","TPP - Home Care","190525781","09/11/2018","Older People Care Purchasing","OP Care Purchasing (Spot Placements)","R5420"
"Wolverhampton City Council","http://opendatacommunities.org/id/metropolitan-district-council/wolverhampton","706697","Radis Community Care","1411201820181108","36.30","TPP - Home Care","190525781","09/11/2018","Older People Care Purchasing","OP Care Purchasing (Spot Placements)","R5420"
"Wolverhampton City Council","http://opendatacommunities.org/id/metropolitan-district-council/wolverhampton","706697","Radis Community Care","1411201820181108","101.64","TPP - Home Care","190525781","09/11/2018","Older People Care Purchasing","OP Care Purchasing (Spot Placements)","R5420"
"Wolverhampton City Council","http://opendatacommunities.org/id/metropolitan-district-council/wolverhampton","706697","Radis Community Care","1411201820181108","294.03","TPP - Home Care","190525781","09/11/2018","Physical Disabilities Care Purchasing","PD Care Purchasing (Spot Placements)","R5420"
"Wolverhampton City Council","http://opendatacommunities.org/id/metropolitan-district-council/wolverhampton","706697","Radis Community Care","1411201820181108","301.29","TPP - Home Care","190525781","09/11/2018","Physical Disabilities Care Purchasing","PD Care Purchasing (Spot Placements)","R5420"
"Wolverhampton City Council","http://opendatacommunities.org/id/metropolitan-district-council/wolverhampton","706697","Radis Community Care","1411201820181108","101.64","TPP - Home Care","190525781","09/11/2018","Older People Care Purchasing","OP Care Purchasing (Spot Placements)","R5420"
"Wolverhampton City Council","http://opendatacommunities.org/id/metropolitan-district-council/wolverhampton","706697","Radis Community Care","1411201820181108","50.82","TPP - Home Care","190525781","09/11/2018","Older People Care Purchasing","OP Care Purchasing (Spot Placements)","R5420"
"Wolverhampton City Council","http://opendatacommunities.org/id/metropolitan-district-council/wolverhampton","706697","Radis Community Care","1411201820181108","112.53","TPP - Home Care","190525781","09/11/2018","Physical Disabilities Care Purchasing","PD Care Purchasing (Spot Placements)","R5420"
"Wolverhampton City Council","http://opendatacommunities.org/id/metropolitan-district-council/wolverhampton","706697","Radis Community Care","1411201820181108","206.91","TPP - Home Care","190525781","09/11/2018","Older People Care Purchasing","OP Care Purchasing (Spot Placements)","R5420"
"Wolverhampton City Council","http://opendatacommunities.org/id/metropolitan-district-council/wolverhampton","706697","Radis Community Care","1411201820181108","72.60","TPP - Home Care","190525781","09/11/2018","Older People Care Purchasing","OP Care Purchasing (Spot Placements)","R5420"
"Wolverhampton City Council","http://opendatacommunities.org/id/metropolitan-district-council/wolverhampton","706697","Radis Community Care","1411201820181108","192.39","TPP - Home Care","190525781","09/11/2018","Older People Care Purchasing","OP Care Purchasing (Spot Placements)","R5420"
"Wolverhampton City Council","http://opendatacommunities.org/id/metropolitan-district-council/wolverhampton","706697","Radis Community Care","1411201820181108","192.39","TPP - Home Care","190525781","09/11/2018","Older People Care Purchasing","OP Care Purchasing (Spot Placements)","R5420"
"Wolverhampton City Council","http://opendatacommunities.org/id/metropolitan-district-council/wolverhampton","706697","Radis Community Care","1411201820181108","50.82","TPP - Home Care","190525781","09/11/2018","Older People Care Purchasing","OP Care Purchasing (Spot Placements)","R5420"
"Wolverhampton City Council","http://opendatacommunities.org/id/metropolitan-district-council/wolverhampton","706697","Radis Community Care","1411201820181108","199.65","TPP - Home Care","190525781","09/11/2018","Physical Disabilities Care Purchasing","PD Care Purchasing (Spot Placements)","R5420"
"Wolverhampton City Council","http://opendatacommunities.org/id/metropolitan-district-council/wolverhampton","706697","Radis Community Care","1411201820181108","148.83","TPP - Home Care","190525781","09/11/2018","Physical Disabilities Care Purchasing","PD Care Purchasing (Spot Placements)","R5420"
"Wolverhampton City Council","http://opendatacommunities.org/id/metropolitan-district-council/wolverhampton","706697","Radis Community Care","1411201820181108","50.82","TPP - Home Care","190525781","09/11/2018","Older People Care Purchasing","OP Care Purchasing (Spot Placements)","R5420"
"Wolverhampton City Council","http://opendatacommunities.org/id/metropolitan-district-council/wolverhampton","706697","Radis Community Care","1411201820181108","170.61","TPP - Home Care","190525781","09/11/2018","Older People Care Purchasing","OP Care Purchasing (Spot Placements)","R5420"
"Wolverhampton City Council","http://opendatacommunities.org/id/metropolitan-district-council/wolverhampton","706697","Radis Community Care","1411201820181108","43.56","TPP - Home Care","190525781","09/11/2018","Older People Care Purchasing","OP Care Purchasing (Spot Placements)","R5420"
"Wolverhampton City Council","http://opendatacommunities.org/id/metropolitan-district-council/wolverhampton","706697","Radis Community Care","1411201820181108","196.02","TPP - Home Care","190525781","09/11/2018","Older People Care Purchasing","OP Care Purchasing (Spot Placements)","R5420"
"Wolverhampton City Council","http://opendatacommunities.org/id/metropolitan-district-council/wolverhampton","706697","Radis Community Care","1411201820181108","32.67","TPP - Home Care","190525781","09/11/2018","Older People Care Purchasing","OP Care Purchasing (Spot Placements)","R5420"
"Wolverhampton City Council","http://opendatacommunities.org/id/metropolitan-district-council/wolverhampton","706697","Radis Community Care","1411201820181108","206.91","TPP - Home Care","190525781","09/11/2018","Older People Care Purchasing","OP Care Purchasing (Spot Placements)","R5420"
"Wolverhampton City Council","http://opendatacommunities.org/id/metropolitan-district-council/wolverhampton","706697","Radis Community Care","1411201820181108","112.53","TPP - Home Care","190525781","09/11/2018","Older People Care Purchasing","OP Care Purchasing (Spot Placements)","R5420"
"Wolverhampton City Council","http://opendatacommunities.org/id/metropolitan-district-council/wolverhampton","706697","Radis Community Care","1411201820181108","36.30","TPP - Home Care","190525781","09/11/2018","Older People Care Purchasing","OP Care Purchasing (Spot Placements)","R5420"
"Wolverhampton City Council","http://opendatacommunities.org/id/metropolitan-district-council/wolverhampton","706697","Radis Community Care","1411201820181108","203.28","TPP - Home Care","190525781","09/11/2018","Older People Care Purchasing","OP Care Purchasing (Spot Placements)","R5420"
"Wolverhampton City Council","http://opendatacommunities.org/id/metropolitan-district-council/wolverhampton","706697","Radis Community Care","1411201820181108","50.82","TPP - Home Care","190525781","09/11/2018","Older People Care Purchasing","OP Care Purchasing (Spot Placements)","R5420"
"Wolverhampton City Council","http://opendatacommunities.org/id/metropolitan-district-council/wolverhampton","706697","Radis Community Care","1411201820181108","217.80","TPP - Home Care","190525781","09/11/2018","Older People Care Purchasing","OP Care Purchasing (Spot Placements)","R5420"
"Wolverhampton City Council","http://opendatacommunities.org/id/metropolitan-district-council/wolverhampton","706697","Radis Community Care","1411201820181108","50.82","TPP - Home Care","190525781","09/11/2018","Older People Care Purchasing","OP Care Purchasing (Spot Placements)","R5420"
"Wolverhampton City Council","http://opendatacommunities.org/id/metropolitan-district-council/wolverhampton","706697","Radis Community Care","1411201820181108","185.13","TPP - Home Care","190525781","09/11/2018","Older People Care Purchasing","OP Care Purchasing (Spot Placements)","R5420"
"Wolverhampton City Council","http://opendatacommunities.org/id/metropolitan-district-council/wolverhampton","706697","Radis Community Care","1411201820181108","225.06","TPP - Home Care","190525781","09/11/2018","Older People Care Purchasing","OP Care Purchasing (Spot Placements)","R5420"
"Wolverhampton City Council","http://opendatacommunities.org/id/metropolitan-district-council/wolverhampton","706697","Radis Community Care","1411201820181108","217.80","TPP - Home Care","190525781","09/11/2018","Older People Care Purchasing","OP Care Purchasing (Spot Placements)","R5420"
"Wolverhampton City Council","http://opendatacommunities.org/id/metropolitan-district-council/wolverhampton","706697","Radis Community Care","1411201820181108","54.45","TPP - Home Care","190525781","09/11/2018","Physical Disabilities Care Purchasing","PD Care Purchasing (Spot Placements)","R5420"
"Wolverhampton City Council","http://opendatacommunities.org/id/metropolitan-district-council/wolverhampton","706697","Radis Community Care","1411201820181108","203.28","TPP - Home Care","190525781","09/11/2018","Older People Care Purchasing","OP Care Purchasing (Spot Placements)","R5420"
"Wolverhampton City Council","http://opendatacommunities.org/id/metropolitan-district-council/wolverhampton","706697","Radis Community Care","1411201820181108","203.28","TPP - Home Care","190525781","09/11/2018","Older People Care Purchasing","OP Care Purchasing (Spot Placements)","R5420"
"Wolverhampton City Council","http://opendatacommunities.org/id/metropolitan-district-council/wolverhampton","706697","Radis Community Care","1411201820181108","148.83","TPP - Home Care","190525781","09/11/2018","Older People Care Purchasing","OP Care Purchasing (Spot Placements)","R5420"
"Wolverhampton City Council","http://opendatacommunities.org/id/metropolitan-district-council/wolverhampton","706697","Radis Community Care","1411201820181108","127.05","TPP - Home Care","190525781","09/11/2018","Older People Care Purchasing","OP Care Purchasing (Spot Placements)","R5420"
"Wolverhampton City Council","http://opendatacommunities.org/id/metropolitan-district-council/wolverhampton","706697","Radis Community Care","1411201820181108","141.57","TPP - Home Care","190525781","09/11/2018","Older People Care Purchasing","OP Care Purchasing (Spot Placements)","R5420"
"Wolverhampton City Council","http://opendatacommunities.org/id/metropolitan-district-council/wolverhampton","706697","Radis Community Care","1411201820181108","152.46","TPP - Home Care","190525781","09/11/2018","Older People Care Purchasing","OP Care Purchasing (Spot Placements)","R5420"
"Wolverhampton City Council","http://opendatacommunities.org/id/metropolitan-district-council/wolverhampton","706697","Radis Community Care","1411201820181108","50.82","TPP - Home Care","190525781","09/11/2018","Older People Care Purchasing","OP Care Purchasing (Spot Placements)","R5420"
"Wolverhampton City Council","http://opendatacommunities.org/id/metropolitan-district-council/wolverhampton","706697","Radis Community Care","1411201820181108","50.82","TPP - Home Care","190525781","09/11/2018","Older People Care Purchasing","OP Care Purchasing (Spot Placements)","R5420"
"Wolverhampton City Council","http://opendatacommunities.org/id/metropolitan-district-council/wolverhampton","706697","Radis Community Care","1811201820181122","192.39","TPP - Home Care","190532278","23/11/2018","Older People Care Purchasing","OP Care Purchasing (Spot Placements)","R5420"
"Wolverhampton City Council","http://opendatacommunities.org/id/metropolitan-district-council/wolverhampton","706697","Radis Community Care","1811201820181122","14.52","TPP - Home Care","190532278","23/11/2018","Older People Care Purchasing","OP Care Purchasing (Spot Placements)","R5420"
"Wolverhampton City Council","http://opendatacommunities.org/id/metropolitan-district-council/wolverhampton","706697","Radis Community Care","1811201820181122","500.94","TPP - Home Care","190532278","23/11/2018","Physical Disabilities Care Purchasing","PD Care Purchasing (Spot Placements)","R5420"
"Wolverhampton City Council","http://opendatacommunities.org/id/metropolitan-district-council/wolverhampton","706697","Radis Community Care","1811201820181122","504.57","TPP - Home Care","190532278","23/11/2018","Physical Disabilities Care Purchasing","PD Care Purchasing (Spot Placements)","R5420"
"Wolverhampton City Council","http://opendatacommunities.org/id/metropolitan-district-council/wolverhampton","706697","Radis Community Care","1811201820181122","79.86","TPP - Home Care","190532278","23/11/2018","Learning Disabilities Care Purchasing","LD Care Purchasing (Spot Placements)","R5420"
"Wolverhampton City Council","http://opendatacommunities.org/id/metropolitan-district-council/wolverhampton","706697","Radis Community Care","1811201820181122","58.08","TPP - Home Care","190532278","23/11/2018","Older People Care Purchasing","OP Care Purchasing (Spot Placements)","R5420"
"Wolverhampton City Council","http://opendatacommunities.org/id/metropolitan-district-council/wolverhampton","706697","Radis Community Care","1811201820181122","14.52","TPP - Home Care","190532278","23/11/2018","Older People Care Purchasing","OP Care Purchasing (Spot Placements)","R5420"
"Wolverhampton City Council","http://opendatacommunities.org/id/metropolitan-district-council/wolverhampton","706697","Radis Community Care","1811201820181122","196.02","TPP - Home Care","190532278","23/11/2018","Older People Care Purchasing","OP Care Purchasing (Spot Placements)","R5420"
"Wolverhampton City Council","http://opendatacommunities.org/id/metropolitan-district-council/wolverhampton","706697","Radis Community Care","1811201820181122","196.02","TPP - Home Care","190532278","23/11/2018","Older People Care Purchasing","OP Care Purchasing (Spot Placements)","R5420"
"Wolverhampton City Council","http://opendatacommunities.org/id/metropolitan-district-council/wolverhampton","706697","Radis Community Care","1811201820181122","166.98","TPP - Home Care","190532278","23/11/2018","Older People Care Purchasing","OP Care Purchasing (Spot Placements)","R5420"
"Wolverhampton City Council","http://opendatacommunities.org/id/metropolitan-district-council/wolverhampton","706697","Radis Community Care","1811201820181122","21.78","TPP - Home Care","190532278","23/11/2018","Physical Disabilities Care Purchasing","PD Care Purchasing (Spot Placements)","R5420"
"Wolverhampton City Council","http://opendatacommunities.org/id/metropolitan-district-council/wolverhampton","706697","Radis Community Care","1811201820181122","181.50","TPP - Home Care","190532278","23/11/2018","Physical Disabilities Care Purchasing","PD Care Purchasing (Spot Placements)","R5420"
"Wolverhampton City Council","http://opendatacommunities.org/id/metropolitan-district-council/wolverhampton","706697","Radis Community Care","1811201820181122","243.21","TPP - Home Care","190532278","23/11/2018","Older People Care Purchasing","OP Care Purchasing (Spot Placements)","R5420"
"Wolverhampton City Council","http://opendatacommunities.org/id/metropolitan-district-council/wolverhampton","706697","Radis Community Care","1811201820181122","101.64","TPP - Home Care","190532278","23/11/2018","Older People Care Purchasing","OP Care Purchasing (Spot Placements)","R5420"
"Wolverhampton City Council","http://opendatacommunities.org/id/metropolitan-district-council/wolverhampton","706697","Radis Community Care","1811201820181122","181.50","TPP - Home Care","190532278","23/11/2018","Older People Care Purchasing","OP Care Purchasing (Spot Placements)","R5420"
"Wolverhampton City Council","http://opendatacommunities.org/id/metropolitan-district-council/wolverhampton","706697","Radis Community Care","1811201820181122","177.87","TPP - Home Care","190532278","23/11/2018","Older People Care Purchasing","OP Care Purchasing (Spot Placements)","R5420"
"Wolverhampton City Council","http://opendatacommunities.org/id/metropolitan-district-council/wolverhampton","706697","Radis Community Care","1811201820181122","83.49","TPP - Home Care","190532278","23/11/2018","Older People Care Purchasing","OP Care Purchasing (Spot Placements)","R5420"
"Wolverhampton City Council","http://opendatacommunities.org/id/metropolitan-district-council/wolverhampton","706697","Radis Community Care","1811201820181122","41.40","TPP - Carer Support Service","190532278","23/11/2018","Carer Support","CS Care Purchasing (Spot Placements)","R5421"
"Wolverhampton City Council","http://opendatacommunities.org/id/metropolitan-district-council/wolverhampton","706697","Radis Community Care","1811201820181122","61.71","TPP - Home Care","190532278","23/11/2018","Physical Disabilities Care Purchasing","PD Care Purchasing (Spot Placements)","R5420"
"Wolverhampton City Council","http://opendatacommunities.org/id/metropolitan-district-council/wolverhampton","706697","Radis Community Care","1811201820181122","101.64","TPP - Home Care","190532278","23/11/2018","Older People Care Purchasing","OP Care Purchasing (Spot Placements)","R5420"
"Wolverhampton City Council","http://opendatacommunities.org/id/metropolitan-district-council/wolverhampton","706697","Radis Community Care","1811201820181122","94.38","TPP - Home Care","190532278","23/11/2018","Older People Care Purchasing","OP Care Purchasing (Spot Placements)","R5420"
"Wolverhampton City Council","http://opendatacommunities.org/id/metropolitan-district-council/wolverhampton","706697","Radis Community Care","1811201820181122","101.64","TPP - Home Care","190532278","23/11/2018","Older People Care Purchasing","OP Care Purchasing (Spot Placements)","R5420"
"Wolverhampton City Council","http://opendatacommunities.org/id/metropolitan-district-council/wolverhampton","706697","Radis Community Care","1811201820181122","214.17","TPP - Home Care","190532278","23/11/2018","Older People Care Purchasing","OP Care Purchasing (Spot Placements)","R5420"
"Wolverhampton City Council","http://opendatacommunities.org/id/metropolitan-district-council/wolverhampton","706697","Radis Community Care","1811201820181122","58.08","TPP - Home Care","190532278","23/11/2018","Older People Care Purchasing","OP Care Purchasing (Spot Placements)","R5420"
"Wolverhampton City Council","http://opendatacommunities.org/id/metropolitan-district-council/wolverhampton","706697","Radis Community Care","1811201820181122","41.40","TPP - Carer Support Service","190532278","23/11/2018","Carer Support","CS Care Purchasing (Spot Placements)","R5421"
"Wolverhampton City Council","http://opendatacommunities.org/id/metropolitan-district-council/wolverhampton","706697","Radis Community Care","1811201820181122","206.91","TPP - Home Care","190532278","23/11/2018","Older People Care Purchasing","OP Care Purchasing (Spot Placements)","R5420"
"Wolverhampton City Council","http://opendatacommunities.org/id/metropolitan-district-council/wolverhampton","706697","Radis Community Care","1811201820181122","98.01","TPP - Home Care","190532278","23/11/2018","Older People Care Purchasing","OP Care Purchasing (Spot Placements)","R5420"
"Wolverhampton City Council","http://opendatacommunities.org/id/metropolitan-district-council/wolverhampton","706697","Radis Community Care","1811201820181122","152.46","TPP - Home Care","190532278","23/11/2018","Older People Care Purchasing","OP Care Purchasing (Spot Placements)","R5420"
"Wolverhampton City Council","http://opendatacommunities.org/id/metropolitan-district-council/wolverhampton","706697","Radis Community Care","1811201820181122","21.78","TPP - Home Care","190532278","23/11/2018","Physical Disabilities Care Purchasing","PD Care Purchasing (Spot Placements)","R5420"
"Wolverhampton City Council","http://opendatacommunities.org/id/metropolitan-district-council/wolverhampton","706697","Radis Community Care","1811201820181122","32.67","TPP - Home Care","190532278","23/11/2018","Physical Disabilities Care Purchasing","PD Care Purchasing (Spot Placements)","R5420"
"Wolverhampton City Council","http://opendatacommunities.org/id/metropolitan-district-council/wolverhampton","706697","Radis Community Care","1811201820181122","217.80","TPP - Home Care","190532278","23/11/2018","Older People Care Purchasing","OP Care Purchasing (Spot Placements)","R5420"
"Wolverhampton City Council","http://opendatacommunities.org/id/metropolitan-district-council/wolverhampton","706697","Radis Community Care","1811201820181122","61.71","TPP - Home Care","190532278","23/11/2018","Older People Care Purchasing","OP Care Purchasing (Spot Placements)","R5420"
"Wolverhampton City Council","http://opendatacommunities.org/id/metropolitan-district-council/wolverhampton","706697","Radis Community Care","1811201820181122","79.86","TPP - Home Care","190532278","23/11/2018","Older People Care Purchasing","OP Care Purchasing (Spot Placements)","R5420"
"Wolverhampton City Council","http://opendatacommunities.org/id/metropolitan-district-council/wolverhampton","706697","Radis Community Care","1811201820181122","235.95","TPP - Home Care","190532278","23/11/2018","Older People Care Purchasing","OP Care Purchasing (Spot Placements)","R5420"
"Wolverhampton City Council","http://opendatacommunities.org/id/metropolitan-district-council/wolverhampton","706697","Radis Community Care","1811201820181122","123.42","TPP - Home Care","190532278","23/11/2018","Older People Care Purchasing","OP Care Purchasing (Spot Placements)","R5420"
"Wolverhampton City Council","http://opendatacommunities.org/id/metropolitan-district-council/wolverhampton","706697","Radis Community Care","1811201820181122","152.46","TPP - Home Care","190532278","23/11/2018","Older People Care Purchasing","OP Care Purchasing (Spot Placements)","R5420"
"Wolverhampton City Council","http://opendatacommunities.org/id/metropolitan-district-council/wolverhampton","706697","Radis Community Care","1811201820181122","50.82","TPP - Home Care","190532278","23/11/2018","Older People Care Purchasing","OP Care Purchasing (Spot Placements)","R5420"
"Wolverhampton City Council","http://opendatacommunities.org/id/metropolitan-district-council/wolverhampton","706697","Radis Community Care","1811201820181122","72.60","TPP - Home Care","190532278","23/11/2018","Older People Care Purchasing","OP Care Purchasing (Spot Placements)","R5420"
"Wolverhampton City Council","http://opendatacommunities.org/id/metropolitan-district-council/wolverhampton","706697","Radis Community Care","1811201820181122","98.01","TPP - Home Care","190532278","23/11/2018","Older People Care Purchasing","OP Care Purchasing (Spot Placements)","R5420"
"Wolverhampton City Council","http://opendatacommunities.org/id/metropolitan-district-council/wolverhampton","706697","Radis Community Care","1811201820181122","36.30","TPP - Home Care","190532278","23/11/2018","Older People Care Purchasing","OP Care Purchasing (Spot Placements)","R5420"
"Wolverhampton City Council","http://opendatacommunities.org/id/metropolitan-district-council/wolverhampton","706697","Radis Community Care","1811201820181122","87.12","TPP - Home Care","190532278","23/11/2018","Older People Care Purchasing","OP Care Purchasing (Spot Placements)","R5420"
"Wolverhampton City Council","http://opendatacommunities.org/id/metropolitan-district-council/wolverhampton","706697","Radis Community Care","1811201820181122","272.25","TPP - Home Care","190532278","23/11/2018","Physical Disabilities Care Purchasing","PD Care Purchasing (Spot Placements)","R5420"
"Wolverhampton City Council","http://opendatacommunities.org/id/metropolitan-district-council/wolverhampton","706697","Radis Community Care","1811201820181122","304.92","TPP - Home Care","190532278","23/11/2018","Physical Disabilities Care Purchasing","PD Care Purchasing (Spot Placements)","R5420"
"Wolverhampton City Council","http://opendatacommunities.org/id/metropolitan-district-council/wolverhampton","706697","Radis Community Care","1811201820181122","105.27","TPP - Home Care","190532278","23/11/2018","Older People Care Purchasing","OP Care Purchasing (Spot Placements)","R5420"
"Wolverhampton City Council","http://opendatacommunities.org/id/metropolitan-district-council/wolverhampton","706697","Radis Community Care","1811201820181122","50.82","TPP - Home Care","190532278","23/11/2018","Older People Care Purchasing","OP Care Purchasing (Spot Placements)","R5420"
"Wolverhampton City Council","http://opendatacommunities.org/id/metropolitan-district-council/wolverhampton","706697","Radis Community Care","1811201820181122","203.28","TPP - Home Care","190532278","23/11/2018","Older People Care Purchasing","OP Care Purchasing (Spot Placements)","R5420"
"Wolverhampton City Council","http://opendatacommunities.org/id/metropolitan-district-council/wolverhampton","706697","Radis Community Care","1811201820181122","203.28","TPP - Home Care","190532278","23/11/2018","Older People Care Purchasing","OP Care Purchasing (Spot Placements)","R5420"
"Wolverhampton City Council","http://opendatacommunities.org/id/metropolitan-district-council/wolverhampton","706697","Radis Community Care","1811201820181122","210.54","TPP - Home Care","190532278","23/11/2018","Older People Care Purchasing","OP Care Purchasing (Spot Placements)","R5420"
"Wolverhampton City Council","http://opendatacommunities.org/id/metropolitan-district-council/wolverhampton","706697","Radis Community Care","1811201820181122","50.82","TPP - Home Care","190532278","23/11/2018","Older People Care Purchasing","OP Care Purchasing (Spot Placements)","R5420"
"Wolverhampton City Council","http://opendatacommunities.org/id/metropolitan-district-council/wolverhampton","706697","Radis Community Care","1811201820181122","166.98","TPP - Home Care","190532278","23/11/2018","Physical Disabilities Care Purchasing","PD Care Purchasing (Spot Placements)","R5420"
"Wolverhampton City Council","http://opendatacommunities.org/id/metropolitan-district-council/wolverhampton","706697","Radis Community Care","1811201820181122","163.35","TPP - Home Care","190532278","23/11/2018","Physical Disabilities Care Purchasing","PD Care Purchasing (Spot Placements)","R5420"
"Wolverhampton City Council","http://opendatacommunities.org/id/metropolitan-district-council/wolverhampton","706697","Radis Community Care","1811201820181122","50.82","TPP - Home Care","190532278","23/11/2018","Older People Care Purchasing","OP Care Purchasing (Spot Placements)","R5420"
"Wolverhampton City Council","http://opendatacommunities.org/id/metropolitan-district-council/wolverhampton","706697","Radis Community Care","1811201820181122","105.27","TPP - Home Care","190532278","23/11/2018","Older People Care Purchasing","OP Care Purchasing (Spot Placements)","R5420"
"Wolverhampton City Council","http://opendatacommunities.org/id/metropolitan-district-council/wolverhampton","706697","Radis Community Care","1811201820181122","72.60","TPP - Home Care","190532278","23/11/2018","Older People Care Purchasing","OP Care Purchasing (Spot Placements)","R5420"
"Wolverhampton City Council","http://opendatacommunities.org/id/metropolitan-district-council/wolverhampton","706697","Radis Community Care","1811201820181122","206.91","TPP - Home Care","190532278","23/11/2018","Older People Care Purchasing","OP Care Purchasing (Spot Placements)","R5420"
"Wolverhampton City Council","http://opendatacommunities.org/id/metropolitan-district-council/wolverhampton","706697","Radis Community Care","1811201820181122","43.56","TPP - Home Care","190532278","23/11/2018","Older People Care Purchasing","OP Care Purchasing (Spot Placements)","R5420"
"Wolverhampton City Council","http://opendatacommunities.org/id/metropolitan-district-council/wolverhampton","706697","Radis Community Care","1811201820181122","47.19","TPP - Home Care","190532278","23/11/2018","Older People Care Purchasing","OP Care Purchasing (Spot Placements)","R5420"
"Wolverhampton City Council","http://opendatacommunities.org/id/metropolitan-district-council/wolverhampton","706697","Radis Community Care","1811201820181122","47.19","TPP - Home Care","190532278","23/11/2018","Older People Care Purchasing","OP Care Purchasing (Spot Placements)","R5420"
"Wolverhampton City Council","http://opendatacommunities.org/id/metropolitan-district-council/wolverhampton","706697","Radis Community Care","1811201820181122","50.82","TPP - Home Care","190532278","23/11/2018","Older People Care Purchasing","OP Care Purchasing (Spot Placements)","R5420"
"Wolverhampton City Council","http://opendatacommunities.org/id/metropolitan-district-council/wolverhampton","706697","Radis Community Care","1811201820181122","50.82","TPP - Home Care","190532278","23/11/2018","Older People Care Purchasing","OP Care Purchasing (Spot Placements)","R5420"
"Wolverhampton City Council","http://opendatacommunities.org/id/metropolitan-district-council/wolverhampton","706697","Radis Community Care","2511201820181129","152.46","TPP - Home Care","190535564","30/11/2018","Older People Care Purchasing","OP Care Purchasing (Spot Placements)","R5420"
"Wolverhampton City Council","http://opendatacommunities.org/id/metropolitan-district-council/wolverhampton","706697","Radis Community Care","2511201820181129","50.82","TPP - Home Care","190535564","30/11/2018","Older People Care Purchasing","OP Care Purchasing (Spot Placements)","R5420"
"Wolverhampton City Council","http://opendatacommunities.org/id/metropolitan-district-council/wolverhampton","706697","Radis Community Care","2511201820181129","72.60","TPP - Home Care","190535564","30/11/2018","Older People Care Purchasing","OP Care Purchasing (Spot Placements)","R5420"
"Wolverhampton City Council","http://opendatacommunities.org/id/metropolitan-district-council/wolverhampton","706697","Radis Community Care","2511201820181129","98.01","TPP - Home Care","190535564","30/11/2018","Older People Care Purchasing","OP Care Purchasing (Spot Placements)","R5420"
"Wolverhampton City Council","http://opendatacommunities.org/id/metropolitan-district-council/wolverhampton","706697","Radis Community Care","2511201820181129","36.30","TPP - Home Care","190535564","30/11/2018","Older People Care Purchasing","OP Care Purchasing (Spot Placements)","R5420"
"Wolverhampton City Council","http://opendatacommunities.org/id/metropolitan-district-council/wolverhampton","706697","Radis Community Care","2511201820181129","79.86","TPP - Home Care","190535564","30/11/2018","Older People Care Purchasing","OP Care Purchasing (Spot Placements)","R5420"
"Wolverhampton City Council","http://opendatacommunities.org/id/metropolitan-district-council/wolverhampton","706697","Radis Community Care","2511201820181129","283.14","TPP - Home Care","190535564","30/11/2018","Physical Disabilities Care Purchasing","PD Care Purchasing (Spot Placements)","R5420"
"Wolverhampton City Council","http://opendatacommunities.org/id/metropolitan-district-council/wolverhampton","706697","Radis Community Care","2511201820181129","297.66","TPP - Home Care","190535564","30/11/2018","Physical Disabilities Care Purchasing","PD Care Purchasing (Spot Placements)","R5420"
"Wolverhampton City Council","http://opendatacommunities.org/id/metropolitan-district-council/wolverhampton","706697","Radis Community Care","2511201820181129","87.12","TPP - Home Care","190535564","30/11/2018","Older People Care Purchasing","OP Care Purchasing (Spot Placements)","R5420"
"Wolverhampton City Council","http://opendatacommunities.org/id/metropolitan-district-council/wolverhampton","706697","Radis Community Care","2511201820181129","39.93","TPP - Home Care","190535564","30/11/2018","Older People Care Purchasing","OP Care Purchasing (Spot Placements)","R5420"
"Wolverhampton City Council","http://opendatacommunities.org/id/metropolitan-district-council/wolverhampton","706697","Radis Community Care","2511201820181129","101.64","TPP - Home Care","190535564","30/11/2018","Older People Care Purchasing","OP Care Purchasing (Spot Placements)","R5420"
"Wolverhampton City Council","http://opendatacommunities.org/id/metropolitan-district-council/wolverhampton","706697","Radis Community Care","2511201820181129","177.87","TPP - Home Care","190535564","30/11/2018","Older People Care Purchasing","OP Care Purchasing (Spot Placements)","R5420"
"Wolverhampton City Council","http://opendatacommunities.org/id/metropolitan-district-council/wolverhampton","706697","Radis Community Care","2511201820181129","174.24","TPP - Home Care","190535564","30/11/2018","Older People Care Purchasing","OP Care Purchasing (Spot Placements)","R5420"
"Wolverhampton City Council","http://opendatacommunities.org/id/metropolitan-district-council/wolverhampton","706697","Radis Community Care","2511201820181129","83.49","TPP - Home Care","190535564","30/11/2018","Older People Care Purchasing","OP Care Purchasing (Spot Placements)","R5420"
"Wolverhampton City Council","http://opendatacommunities.org/id/metropolitan-district-council/wolverhampton","706697","Radis Community Care","2511201820181129","41.40","TPP - Carer Support Service","190535564","30/11/2018","Carer Support","CS Care Purchasing (Spot Placements)","R5421"
"Wolverhampton City Council","http://opendatacommunities.org/id/metropolitan-district-council/wolverhampton","706697","Radis Community Care","2511201820181129","72.60","TPP - Home Care","190535564","30/11/2018","Physical Disabilities Care Purchasing","PD Care Purchasing (Spot Placements)","R5420"
"Wolverhampton City Council","http://opendatacommunities.org/id/metropolitan-district-council/wolverhampton","706697","Radis Community Care","2511201820181129","87.12","TPP - Home Care","190535564","30/11/2018","Older People Care Purchasing","OP Care Purchasing (Spot Placements)","R5420"
"Wolverhampton City Council","http://opendatacommunities.org/id/metropolitan-district-council/wolverhampton","706697","Radis Community Care","2511201820181129","98.01","TPP - Home Care","190535564","30/11/2018","Older People Care Purchasing","OP Care Purchasing (Spot Placements)","R5420"
"Wolverhampton City Council","http://opendatacommunities.org/id/metropolitan-district-council/wolverhampton","706697","Radis Community Care","2511201820181129","98.01","TPP - Home Care","190535564","30/11/2018","Older People Care Purchasing","OP Care Purchasing (Spot Placements)","R5420"
"Wolverhampton City Council","http://opendatacommunities.org/id/metropolitan-district-council/wolverhampton","706697","Radis Community Care","2511201820181129","228.69","TPP - Home Care","190535564","30/11/2018","Older People Care Purchasing","OP Care Purchasing (Spot Placements)","R5420"
"Wolverhampton City Council","http://opendatacommunities.org/id/metropolitan-district-council/wolverhampton","706697","Radis Community Care","2511201820181129","76.23","TPP - Home Care","190535564","30/11/2018","Older People Care Purchasing","OP Care Purchasing (Spot Placements)","R5420"
"Wolverhampton City Council","http://opendatacommunities.org/id/metropolitan-district-council/wolverhampton","706697","Radis Community Care","2511201820181129","206.91","TPP - Home Care","190535564","30/11/2018","Older People Care Purchasing","OP Care Purchasing (Spot Placements)","R5420"
"Wolverhampton City Council","http://opendatacommunities.org/id/metropolitan-district-council/wolverhampton","706697","Radis Community Care","2511201820181129","152.46","TPP - Home Care","190535564","30/11/2018","Older People Care Purchasing","OP Care Purchasing (Spot Placements)","R5420"
"Wolverhampton City Council","http://opendatacommunities.org/id/metropolitan-district-council/wolverhampton","706697","Radis Community Care","2511201820181129","101.64","TPP - Home Care","190535564","30/11/2018","Older People Care Purchasing","OP Care Purchasing (Spot Placements)","R5420"
"Wolverhampton City Council","http://opendatacommunities.org/id/metropolitan-district-council/wolverhampton","706697","Radis Community Care","2511201820181129","148.83","TPP - Home Care","190535564","30/11/2018","Physical Disabilities Care Purchasing","PD Care Purchasing (Spot Placements)","R5420"
"Wolverhampton City Council","http://opendatacommunities.org/id/metropolitan-district-council/wolverhampton","706697","Radis Community Care","2511201820181129","152.46","TPP - Home Care","190535564","30/11/2018","Physical Disabilities Care Purchasing","PD Care Purchasing (Spot Placements)","R5420"
"Wolverhampton City Council","http://opendatacommunities.org/id/metropolitan-district-council/wolverhampton","706697","Radis Community Care","2511201820181129","36.30","TPP - Home Care","190535564","30/11/2018","Physical Disabilities Care Purchasing","PD Care Purchasing (Spot Placements)","R5420"
"Wolverhampton City Council","http://opendatacommunities.org/id/metropolitan-district-council/wolverhampton","706697","Radis Community Care","2511201820181129","214.17","TPP - Home Care","190535564","30/11/2018","Older People Care Purchasing","OP Care Purchasing (Spot Placements)","R5420"
"Wolverhampton City Council","http://opendatacommunities.org/id/metropolitan-district-council/wolverhampton","706697","Radis Community Care","2511201820181129","203.28","TPP - Home Care","190535564","30/11/2018","Older People Care Purchasing","OP Care Purchasing (Spot Placements)","R5420"
"Wolverhampton City Council","http://opendatacommunities.org/id/metropolitan-district-council/wolverhampton","706697","Radis Community Care","2511201820181129","203.28","TPP - Home Care","190535564","30/11/2018","Older People Care Purchasing","OP Care Purchasing (Spot Placements)","R5420"
"Wolverhampton City Council","http://opendatacommunities.org/id/metropolitan-district-council/wolverhampton","706697","Radis Community Care","2511201820181129","50.82","TPP - Home Care","190535564","30/11/2018","Older People Care Purchasing","OP Care Purchasing (Spot Placements)","R5420"
"Wolverhampton City Council","http://opendatacommunities.org/id/metropolitan-district-council/wolverhampton","706697","Radis Community Care","2511201820181129","203.28","TPP - Home Care","190535564","30/11/2018","Physical Disabilities Care Purchasing","PD Care Purchasing (Spot Placements)","R5420"
"Wolverhampton City Council","http://opendatacommunities.org/id/metropolitan-district-council/wolverhampton","706697","Radis Community Care","2511201820181129","163.35","TPP - Home Care","190535564","30/11/2018","Physical Disabilities Care Purchasing","PD Care Purchasing (Spot Placements)","R5420"
"Wolverhampton City Council","http://opendatacommunities.org/id/metropolitan-district-council/wolverhampton","706697","Radis Community Care","2511201820181129","50.82","TPP - Home Care","190535564","30/11/2018","Older People Care Purchasing","OP Care Purchasing (Spot Placements)","R5420"
"Wolverhampton City Council","http://opendatacommunities.org/id/metropolitan-district-council/wolverhampton","706697","Radis Community Care","2511201820181129","61.71","TPP - Home Care","190535564","30/11/2018","Older People Care Purchasing","OP Care Purchasing (Spot Placements)","R5420"
"Wolverhampton City Council","http://opendatacommunities.org/id/metropolitan-district-council/wolverhampton","706697","Radis Community Care","2511201820181129","196.02","TPP - Home Care","190535564","30/11/2018","Older People Care Purchasing","OP Care Purchasing (Spot Placements)","R5420"
"Wolverhampton City Council","http://opendatacommunities.org/id/metropolitan-district-council/wolverhampton","706697","Radis Community Care","2511201820181129","43.56","TPP - Home Care","190535564","30/11/2018","Older People Care Purchasing","OP Care Purchasing (Spot Placements)","R5420"
"Wolverhampton City Council","http://opendatacommunities.org/id/metropolitan-district-council/wolverhampton","706697","Radis Community Care","2511201820181129","50.82","TPP - Home Care","190535564","30/11/2018","Older People Care Purchasing","OP Care Purchasing (Spot Placements)","R5420"
"Wolverhampton City Council","http://opendatacommunities.org/id/metropolitan-district-council/wolverhampton","706697","Radis Community Care","2511201820181129","50.82","TPP - Home Care","190535564","30/11/2018","Older People Care Purchasing","OP Care Purchasing (Spot Placements)","R5420"
"Wolverhampton City Council","http://opendatacommunities.org/id/metropolitan-district-council/wolverhampton","706697","Radis Community Care","2511201820181129","50.82","TPP - Home Care","190535564","30/11/2018","Older People Care Purchasing","OP Care Purchasing (Spot Placements)","R5420"
"Wolverhampton City Council","http://opendatacommunities.org/id/metropolitan-district-council/wolverhampton","706697","Radis Community Care","2511201820181129","47.19","TPP - Home Care","190535564","30/11/2018","Older People Care Purchasing","OP Care Purchasing (Spot Placements)","R5420"
"Wolverhampton City Council","http://opendatacommunities.org/id/metropolitan-district-council/wolverhampton","706697","Radis Community Care","2511201820181129","250.47","TPP - Home Care","190535564","30/11/2018","Older People Care Purchasing","OP Care Purchasing (Spot Placements)","R5420"
"Wolverhampton City Council","http://opendatacommunities.org/id/metropolitan-district-council/wolverhampton","706697","Radis Community Care","2511201820181129","257.73","TPP - Home Care","190535564","30/11/2018","Older People Care Purchasing","OP Care Purchasing (Spot Placements)","R5420"
"Wolverhampton City Council","http://opendatacommunities.org/id/metropolitan-district-council/wolverhampton","706697","Radis Community Care","2511201820181129","108.90","TPP - Home Care","190535564","30/11/2018","Physical Disabilities Care Purchasing","PD Care Purchasing (Spot Placements)","R5420"
"Wolverhampton City Council","http://opendatacommunities.org/id/metropolitan-district-council/wolverhampton","706697","Radis Community Care","2511201820181129","90.75","TPP - Home Care","190535564","30/11/2018","Physical Disabilities Care Purchasing","PD Care Purchasing (Spot Placements)","R5420"
"Wolverhampton City Council","http://opendatacommunities.org/id/metropolitan-district-council/wolverhampton","706697","Radis Community Care","2511201820181129","199.65","TPP - Home Care","190535564","30/11/2018","Older People Care Purchasing","OP Care Purchasing (Spot Placements)","R5420"
"Wolverhampton City Council","http://opendatacommunities.org/id/metropolitan-district-council/wolverhampton","706697","Radis Community Care","2511201820181129","101.64","TPP - Home Care","190535564","30/11/2018","Older People Care Purchasing","OP Care Purchasing (Spot Placements)","R5420"
"Wolverhampton City Council","http://opendatacommunities.org/id/metropolitan-district-council/wolverhampton","706697","Radis Community Care","2511201820181129","98.01","TPP - Home Care","190535564","30/11/2018","Older People Care Purchasing","OP Care Purchasing (Spot Placements)","R5420"
"Wolverhampton City Council","http://opendatacommunities.org/id/metropolitan-district-council/wolverhampton","706697","Radis Community Care","2511201820181129","217.80","TPP - Home Care","190535564","30/11/2018","Older People Care Purchasing","OP Care Purchasing (Spot Placements)","R5420"
"Wolverhampton City Council","http://opendatacommunities.org/id/metropolitan-district-council/wolverhampton","706697","Radis Community Care","2511201820181129","101.64","TPP - Home Care","190535564","30/11/2018","Older People Care Purchasing","OP Care Purchasing (Spot Placements)","R5420"
"Wolverhampton City Council","http://opendatacommunities.org/id/metropolitan-district-council/wolverhampton","706697","Radis Community Care","2511201820181129","101.64","TPP - Home Care","190535564","30/11/2018","Older People Care Purchasing","OP Care Purchasing (Spot Placements)","R5420"
"Wolverhampton City Council","http://opendatacommunities.org/id/metropolitan-district-council/wolverhampton","706697","Radis Community Care","2511201820181129","185.13","TPP - Home Care","190535564","30/11/2018","Older People Care Purchasing","OP Care Purchasing (Spot Placements)","R5420"
"Wolverhampton City Council","http://opendatacommunities.org/id/metropolitan-district-council/wolverhampton","706697","Radis Community Care","2511201820181129","50.82","TPP - Home Care","190535564","30/11/2018","Older People Care Purchasing","OP Care Purchasing (Spot Placements)","R5420"
"Wolverhampton City Council","http://opendatacommunities.org/id/metropolitan-district-council/wolverhampton","706697","Radis Community Care","2511201820181129","232.32","TPP - Home Care","190535564","30/11/2018","Older People Care Purchasing","OP Care Purchasing (Spot Placements)","R5420"
"Wolverhampton City Council","http://opendatacommunities.org/id/metropolitan-district-council/wolverhampton","706697","Radis Community Care","2511201820181129","50.82","TPP - Home Care","190535564","30/11/2018","Older People Care Purchasing","OP Care Purchasing (Spot Placements)","R5420"
"Wolverhampton City Council","http://opendatacommunities.org/id/metropolitan-district-council/wolverhampton","706697","Radis Community Care","2511201820181129","174.24","TPP - Home Care","190535564","30/11/2018","Older People Care Purchasing","OP Care Purchasing (Spot Placements)","R5420"
"Wolverhampton City Council","http://opendatacommunities.org/id/metropolitan-district-council/wolverhampton","706697","Radis Community Care","2511201820181129","225.06","TPP - Home Care","190535564","30/11/2018","Older People Care Purchasing","OP Care Purchasing (Spot Placements)","R5420"
"Wolverhampton City Council","http://opendatacommunities.org/id/metropolitan-district-council/wolverhampton","706697","Radis Community Care","2511201820181129","239.58","TPP - Home Care","190535564","30/11/2018","Older People Care Purchasing","OP Care Purchasing (Spot Placements)","R5420"
"Wolverhampton City Council","http://opendatacommunities.org/id/metropolitan-district-council/wolverhampton","706697","Radis Community Care","2511201820181129","43.56","TPP - Home Care","190535564","30/11/2018","Physical Disabilities Care Purchasing","PD Care Purchasing (Spot Placements)","R5420"
"Wolverhampton City Council","http://opendatacommunities.org/id/metropolitan-district-council/wolverhampton","706697","Radis Community Care","2511201820181129","210.54","TPP - Home Care","190535564","30/11/2018","Older People Care Purchasing","OP Care Purchasing (Spot Placements)","R5420"
"Wolverhampton City Council","http://opendatacommunities.org/id/metropolitan-district-council/wolverhampton","706697","Radis Community Care","2511201820181129","203.28","TPP - Home Care","190535564","30/11/2018","Older People Care Purchasing","OP Care Purchasing (Spot Placements)","R5420"
"Wolverhampton City Council","http://opendatacommunities.org/id/metropolitan-district-council/wolverhampton","706697","Radis Community Care","2511201820181129","141.57","TPP - Home Care","190535564","30/11/2018","Older People Care Purchasing","OP Care Purchasing (Spot Placements)","R5420"
"Wolverhampton City Council","http://opendatacommunities.org/id/metropolitan-district-council/wolverhampton","706697","Radis Community Care","2511201820181129","50.82","TPP - Home Care","190535564","30/11/2018","Older People Care Purchasing","OP Care Purchasing (Spot Placements)","R5420"
"Wolverhampton City Council","http://opendatacommunities.org/id/metropolitan-district-council/wolverhampton","706697","Radis Community Care","2511201820181129","152.46","TPP - Home Care","190535564","30/11/2018","Older People Care Purchasing","OP Care Purchasing (Spot Placements)","R5420"
"Wolverhampton City Council","http://opendatacommunities.org/id/metropolitan-district-council/wolverhampton","706697","Radis Community Care","2511201820181129","152.46","TPP - Home Care","190535564","30/11/2018","Older People Care Purchasing","OP Care Purchasing (Spot Placements)","R5420"
"Wolverhampton City Council","http://opendatacommunities.org/id/metropolitan-district-council/wolverhampton","706697","Radis Community Care","2511201820181129","50.82","TPP - Home Care","190535564","30/11/2018","Older People Care Purchasing","OP Care Purchasing (Spot Placements)","R5420"
"Wolverhampton City Council","http://opendatacommunities.org/id/metropolitan-district-council/wolverhampton","706697","Radis Community Care","2511201820181129","50.82","TPP - Home Care","190535564","30/11/2018","Older People Care Purchasing","OP Care Purchasing (Spot Placements)","R5420"
"Wolverhampton City Council","http://opendatacommunities.org/id/metropolitan-district-council/wolverhampton","706697","Radis Community Care","2511201820181129","58.08","TPP - Home Care","190535564","30/11/2018","Older People Care Purchasing","OP Care Purchasing (Spot Placements)","R5420"
"Wolverhampton City Council","http://opendatacommunities.org/id/metropolitan-district-council/wolverhampton","706697","Radis Community Care","2511201820181129","134.31","TPP - Home Care","190535564","30/11/2018","Older People Care Purchasing","OP Care Purchasing (Spot Placements)","R5420"
"Wolverhampton City Council","http://opendatacommunities.org/id/metropolitan-district-council/wolverhampton","706697","Radis Community Care","2511201820181129","203.28","TPP - Home Care","190535564","30/11/2018","Older People Care Purchasing","OP Care Purchasing (Spot Placements)","R5420"
"Wolverhampton City Council","http://opendatacommunities.org/id/metropolitan-district-council/wolverhampton","706697","Radis Community Care","2511201820181129","203.28","TPP - Home Care","190535564","30/11/2018","Older People Care Purchasing","OP Care Purchasing (Spot Placements)","R5420"
"Wolverhampton City Council","http://opendatacommunities.org/id/metropolitan-district-council/wolverhampton","706697","Radis Community Care","2511201820181129","185.13","TPP - Home Care","190535564","30/11/2018","Older People Care Purchasing","OP Care Purchasing (Spot Placements)","R5420"
"Wolverhampton City Council","http://opendatacommunities.org/id/metropolitan-district-council/wolverhampton","706697","Radis Community Care","2511201820181129","148.83","TPP - Home Care","190535564","30/11/2018","Older People Care Purchasing","OP Care Purchasing (Spot Placements)","R5420"
"Wolverhampton City Council","http://opendatacommunities.org/id/metropolitan-district-council/wolverhampton","706697","Radis Community Care","2511201820181129","94.38","TPP - Home Care","190535564","30/11/2018","Older People Care Purchasing","OP Care Purchasing (Spot Placements)","R5420"
"Wolverhampton City Council","http://opendatacommunities.org/id/metropolitan-district-council/wolverhampton","706697","Radis Community Care","2511201820181129","145.20","TPP - Home Care","190535564","30/11/2018","Older People Care Purchasing","OP Care Purchasing (Spot Placements)","R5420"
"Wolverhampton City Council","http://opendatacommunities.org/id/metropolitan-district-council/wolverhampton","706697","Radis Community Care","2511201820181129","170.61","TPP - Home Care","190535564","30/11/2018","Older People Care Purchasing","OP Care Purchasing (Spot Placements)","R5420"
"Wolverhampton City Council","http://opendatacommunities.org/id/metropolitan-district-council/wolverhampton","706697","Radis Community Care","2511201820181129","163.35","TPP - Home Care","190535564","30/11/2018","Older People Care Purchasing","OP Care Purchasing (Spot Placements)","R5420"
"Wolverhampton City Council","http://opendatacommunities.org/id/metropolitan-district-council/wolverhampton","706697","Radis Community Care","2511201820181129","239.58","TPP - Home Care","190535564","30/11/2018","Older People Care Purchasing","OP Care Purchasing (Spot Placements)","R5420"
"Wolverhampton City Council","http://opendatacommunities.org/id/metropolitan-district-council/wolverhampton","706697","Radis Community Care","2511201820181129","203.28","TPP - Home Care","190535564","30/11/2018","Older People Care Purchasing","OP Care Purchasing (Spot Placements)","R5420"
"Wolverhampton City Council","http://opendatacommunities.org/id/metropolitan-district-council/wolverhampton","706697","Radis Community Care","2511201820181129","181.50","TPP - Home Care","190535564","30/11/2018","Older People Care Purchasing","OP Care Purchasing (Spot Placements)","R5420"
"Wolverhampton City Council","http://opendatacommunities.org/id/metropolitan-district-council/wolverhampton","706697","Radis Community Care","2511201820181129","203.28","TPP - Home Care","190535564","30/11/2018","Older People Care Purchasing","OP Care Purchasing (Spot Placements)","R5420"
"Wolverhampton City Council","http://opendatacommunities.org/id/metropolitan-district-council/wolverhampton","706697","Radis Community Care","2511201820181129","170.61","TPP - Home Care","190535564","30/11/2018","Older People Care Purchasing","OP Care Purchasing (Spot Placements)","R5420"
"Wolverhampton City Council","http://opendatacommunities.org/id/metropolitan-district-council/wolverhampton","706697","Radis Community Care","2511201820181129","159.72","TPP - Home Care","190535564","30/11/2018","Physical Disabilities Care Purchasing","PD Care Purchasing (Spot Placements)","R5420"
"Wolverhampton City Council","http://opendatacommunities.org/id/metropolitan-district-council/wolverhampton","706697","Radis Community Care","2511201820181129","141.57","TPP - Home Care","190535564","30/11/2018","Physical Disabilities Care Purchasing","PD Care Purchasing (Spot Placements)","R5420"
"Wolverhampton City Council","http://opendatacommunities.org/id/metropolitan-district-council/wolverhampton","706697","Radis Community Care","2511201820181129","210.54","TPP - Home Care","190535564","30/11/2018","Older People Care Purchasing","OP Care Purchasing (Spot Placements)","R5420"
"Wolverhampton City Council","http://opendatacommunities.org/id/metropolitan-district-council/wolverhampton","706697","Radis Community Care","2511201820181129","206.91","TPP - Home Care","190535564","30/11/2018","Older People Care Purchasing","OP Care Purchasing (Spot Placements)","R5420"
"Wolverhampton City Council","http://opendatacommunities.org/id/metropolitan-district-council/wolverhampton","706697","Radis Community Care","2511201820181129","98.01","TPP - Home Care","190535564","30/11/2018","Older People Care Purchasing","OP Care Purchasing (Spot Placements)","R5420"
"Wolverhampton City Council","http://opendatacommunities.org/id/metropolitan-district-council/wolverhampton","706697","Radis Community Care","2511201820181129","36.30","TPP - Home Care","190535564","30/11/2018","Older People Care Purchasing","OP Care Purchasing (Spot Placements)","R5420"
"Wolverhampton City Council","http://opendatacommunities.org/id/metropolitan-district-council/wolverhampton","706697","Radis Community Care","2511201820181129","148.83","TPP - Home Care","190535564","30/11/2018","Older People Care Purchasing","OP Care Purchasing (Spot Placements)","R5420"
"Wolverhampton City Council","http://opendatacommunities.org/id/metropolitan-district-council/wolverhampton","706697","Radis Community Care","2511201820181129","101.64","TPP - Home Care","190535564","30/11/2018","Older People Care Purchasing","OP Care Purchasing (Spot Placements)","R5420"
"Wolverhampton City Council","http://opendatacommunities.org/id/metropolitan-district-council/wolverhampton","706697","Radis Community Care","2511201820181129","65.34","TPP - Home Care","190535564","30/11/2018","Older People Care Purchasing","OP Care Purchasing (Spot Placements)","R5420"
"Wolverhampton City Council","http://opendatacommunities.org/id/metropolitan-district-council/wolverhampton","706697","Radis Community Care","2511201820181129","94.38","TPP - Home Care","190535564","30/11/2018","Older People Care Purchasing","OP Care Purchasing (Spot Placements)","R5420"
"Wolverhampton City Council","http://opendatacommunities.org/id/metropolitan-district-council/wolverhampton","706697","Radis Community Care","2511201820181129","112.53","TPP - Home Care","190535564","30/11/2018","Older People Care Purchasing","OP Care Purchasing (Spot Placements)","R5420"
"Wolverhampton City Council","http://opendatacommunities.org/id/metropolitan-district-council/wolverhampton","706697","Radis Community Care","2511201820181129","69.00","TPP - Carer Support Service","190535564","30/11/2018","Carer Support","CS Care Purchasing (Spot Placements)","R5421"
"Wolverhampton City Council","http://opendatacommunities.org/id/metropolitan-district-council/wolverhampton","706697","Radis Community Care","2810201820181031","228.69","TPP - Home Care","190524283","02/11/2018","Older People Care Purchasing","OP Care Purchasing (Spot Placements)","R5420"
"Wolverhampton City Council","http://opendatacommunities.org/id/metropolitan-district-council/wolverhampton","706697","Radis Community Care","2810201820181031","47.19","TPP - Home Care","190524283","02/11/2018","Older People Care Purchasing","OP Care Purchasing (Spot Placements)","R5420"
"Wolverhampton City Council","http://opendatacommunities.org/id/metropolitan-district-council/wolverhampton","706697","Radis Community Care","2810201820181031","177.87","TPP - Home Care","190524283","02/11/2018","Older People Care Purchasing","OP Care Purchasing (Spot Placements)","R5420"
"Wolverhampton City Council","http://opendatacommunities.org/id/metropolitan-district-council/wolverhampton","706697","Radis Community Care","2810201820181031","232.32","TPP - Home Care","190524283","02/11/2018","Older People Care Purchasing","OP Care Purchasing (Spot Placements)","R5420"
"Wolverhampton City Council","http://opendatacommunities.org/id/metropolitan-district-council/wolverhampton","706697","Radis Community Care","2810201820181031","235.95","TPP - Home Care","190524283","02/11/2018","Older People Care Purchasing","OP Care Purchasing (Spot Placements)","R5420"
"Wolverhampton City Council","http://opendatacommunities.org/id/metropolitan-district-council/wolverhampton","706697","Radis Community Care","2810201820181031","54.45","TPP - Home Care","190524283","02/11/2018","Physical Disabilities Care Purchasing","PD Care Purchasing (Spot Placements)","R5420"
"Wolverhampton City Council","http://opendatacommunities.org/id/metropolitan-district-council/wolverhampton","706697","Radis Community Care","2810201820181031","192.39","TPP - Home Care","190524283","02/11/2018","Older People Care Purchasing","OP Care Purchasing (Spot Placements)","R5420"
"Wolverhampton City Council","http://opendatacommunities.org/id/metropolitan-district-council/wolverhampton","706697","Radis Community Care","2810201820181031","206.91","TPP - Home Care","190524283","02/11/2018","Older People Care Purchasing","OP Care Purchasing (Spot Placements)","R5420"
"Wolverhampton City Council","http://opendatacommunities.org/id/metropolitan-district-council/wolverhampton","706697","Radis Community Care","2810201820181031","152.46","TPP - Home Care","190524283","02/11/2018","Older People Care Purchasing","OP Care Purchasing (Spot Placements)","R5420"
"Wolverhampton City Council","http://opendatacommunities.org/id/metropolitan-district-council/wolverhampton","706697","Radis Community Care","2810201820181031","105.27","TPP - Home Care","190524283","02/11/2018","Older People Care Purchasing","OP Care Purchasing (Spot Placements)","R5420"
"Wolverhampton City Council","http://opendatacommunities.org/id/metropolitan-district-council/wolverhampton","706697","Radis Community Care","2810201820181031","152.46","TPP - Home Care","190524283","02/11/2018","Older People Care Purchasing","OP Care Purchasing (Spot Placements)","R5420"
"Wolverhampton City Council","http://opendatacommunities.org/id/metropolitan-district-council/wolverhampton","706697","Radis Community Care","2810201820181031","152.46","TPP - Home Care","190524283","02/11/2018","Older People Care Purchasing","OP Care Purchasing (Spot Placements)","R5420"
"Wolverhampton City Council","http://opendatacommunities.org/id/metropolitan-district-council/wolverhampton","706697","Radis Community Care","2810201820181031","50.82","TPP - Home Care","190524283","02/11/2018","Older People Care Purchasing","OP Care Purchasing (Spot Placements)","R5420"
"Wolverhampton City Council","http://opendatacommunities.org/id/metropolitan-district-council/wolverhampton","706697","Radis Community Care","2810201820181031","50.82","TPP - Home Care","190524283","02/11/2018","Older People Care Purchasing","OP Care Purchasing (Spot Placements)","R5420"
"Wolverhampton City Council","http://opendatacommunities.org/id/metropolitan-district-council/wolverhampton","706697","Radis Community Care","2810201820181031","50.82","TPP - Home Care","190524283","02/11/2018","Older People Care Purchasing","OP Care Purchasing (Spot Placements)","R5420"
"Wolverhampton City Council","http://opendatacommunities.org/id/metropolitan-district-council/wolverhampton","706697","Radis Community Care","2810201820181031","235.95","TPP - Home Care","190524283","02/11/2018","Older People Care Purchasing","OP Care Purchasing (Spot Placements)","R5420"
"Wolverhampton City Council","http://opendatacommunities.org/id/metropolitan-district-council/wolverhampton","706697","Radis Community Care","2810201820181031","210.54","TPP - Home Care","190524283","02/11/2018","Older People Care Purchasing","OP Care Purchasing (Spot Placements)","R5420"
"Wolverhampton City Council","http://opendatacommunities.org/id/metropolitan-district-council/wolverhampton","706697","Radis Community Care","2810201820181031","210.54","TPP - Home Care","190524283","02/11/2018","Older People Care Purchasing","OP Care Purchasing (Spot Placements)","R5420"
"Wolverhampton City Council","http://opendatacommunities.org/id/metropolitan-district-council/wolverhampton","706697","Radis Community Care","2810201820181031","181.50","TPP - Home Care","190524283","02/11/2018","Older People Care Purchasing","OP Care Purchasing (Spot Placements)","R5420"
"Wolverhampton City Council","http://opendatacommunities.org/id/metropolitan-district-council/wolverhampton","706697","Radis Community Care","2810201820181031","90.75","TPP - Home Care","190524283","02/11/2018","Older People Care Purchasing","OP Care Purchasing (Spot Placements)","R5420"
"Wolverhampton City Council","http://opendatacommunities.org/id/metropolitan-district-council/wolverhampton","706697","Radis Community Care","2810201820181031","141.57","TPP - Home Care","190524283","02/11/2018","Older People Care Purchasing","OP Care Purchasing (Spot Placements)","R5420"
"Wolverhampton City Council","http://opendatacommunities.org/id/metropolitan-district-council/wolverhampton","706697","Radis Community Care","2810201820181031","152.46","TPP - Home Care","190524283","02/11/2018","Older People Care Purchasing","OP Care Purchasing (Spot Placements)","R5420"
"Wolverhampton City Council","http://opendatacommunities.org/id/metropolitan-district-council/wolverhampton","706697","Radis Community Care","2810201820181031","79.86","TPP - Home Care","190524283","02/11/2018","Older People Care Purchasing","OP Care Purchasing (Spot Placements)","R5420"
"Wolverhampton City Council","http://opendatacommunities.org/id/metropolitan-district-council/wolverhampton","706697","Radis Community Care","2810201820181031","152.46","TPP - Home Care","190524283","02/11/2018","Older People Care Purchasing","OP Care Purchasing (Spot Placements)","R5420"
"Wolverhampton City Council","http://opendatacommunities.org/id/metropolitan-district-council/wolverhampton","706697","Radis Community Care","2810201820181031","148.83","TPP - Home Care","190524283","02/11/2018","Older People Care Purchasing","OP Care Purchasing (Spot Placements)","R5420"
"Wolverhampton City Council","http://opendatacommunities.org/id/metropolitan-district-council/wolverhampton","706697","Radis Community Care","2810201820181031","159.72","TPP - Home Care","190524283","02/11/2018","Older People Care Purchasing","OP Care Purchasing (Spot Placements)","R5420"
"Wolverhampton City Council","http://opendatacommunities.org/id/metropolitan-district-council/wolverhampton","706697","Radis Community Care","2810201820181031","166.98","TPP - Home Care","190524283","02/11/2018","Older People Care Purchasing","OP Care Purchasing (Spot Placements)","R5420"
"Wolverhampton City Council","http://opendatacommunities.org/id/metropolitan-district-council/wolverhampton","706697","Radis Community Care","2810201820181031","159.72","TPP - Home Care","190524283","02/11/2018","Older People Care Purchasing","OP Care Purchasing (Spot Placements)","R5420"
"Wolverhampton City Council","http://opendatacommunities.org/id/metropolitan-district-council/wolverhampton","706697","Radis Community Care","2810201820181031","152.46","TPP - Home Care","190524283","02/11/2018","Older People Care Purchasing","OP Care Purchasing (Spot Placements)","R5420"
"Wolverhampton City Council","http://opendatacommunities.org/id/metropolitan-district-council/wolverhampton","706697","Radis Community Care","2810201820181031","127.05","TPP - Home Care","190524283","02/11/2018","Older People Care Purchasing","OP Care Purchasing (Spot Placements)","R5420"
"Wolverhampton City Council","http://opendatacommunities.org/id/metropolitan-district-council/wolverhampton","706697","Radis Community Care","2810201820181031","177.87","TPP - Home Care","190524283","02/11/2018","Older People Care Purchasing","OP Care Purchasing (Spot Placements)","R5420"
"Wolverhampton City Council","http://opendatacommunities.org/id/metropolitan-district-council/wolverhampton","706697","Radis Community Care","2810201820181031","214.17","TPP - Home Care","190524283","02/11/2018","Older People Care Purchasing","OP Care Purchasing (Spot Placements)","R5420"
"Wolverhampton City Council","http://opendatacommunities.org/id/metropolitan-district-council/wolverhampton","706697","Radis Community Care","2810201820181031","119.79","TPP - Home Care","190524283","02/11/2018","Older People Care Purchasing","OP Care Purchasing (Spot Placements)","R5420"
"Wolverhampton City Council","http://opendatacommunities.org/id/metropolitan-district-council/wolverhampton","706697","Radis Community Care","2810201820181031","101.64","TPP - Home Care","190524283","02/11/2018","Older People Care Purchasing","OP Care Purchasing (Spot Placements)","R5420"
"Wolverhampton City Council","http://opendatacommunities.org/id/metropolitan-district-council/wolverhampton","706697","Radis Community Care","2810201820181031","196.02","TPP - Home Care","190524283","02/11/2018","Older People Care Purchasing","OP Care Purchasing (Spot Placements)","R5420"
"Wolverhampton City Council","http://opendatacommunities.org/id/metropolitan-district-council/wolverhampton","706697","Radis Community Care","2810201820181031","50.82","TPP - Home Care","190524283","02/11/2018","Older People Care Purchasing","OP Care Purchasing (Spot Placements)","R5420"
"Wolverhampton City Council","http://opendatacommunities.org/id/metropolitan-district-council/wolverhampton","706705","Rainbow Taxis Limited","6215","1,238.15","Client Transport","130233709","07/11/2018","Special Educational Needs","Special - Transport","R3042"
"Wolverhampton City Council","http://opendatacommunities.org/id/metropolitan-district-council/wolverhampton","706705","Rainbow Taxis Limited","6236","1,380.00","Client Transport","130233511","07/11/2018","Learning Disabilities Care Purchasing","LD Care Purchasing (Spot Placements)","R3042"
"Wolverhampton City Council","http://opendatacommunities.org/id/metropolitan-district-council/wolverhampton","706705","Rainbow Taxis Limited","6231","1,577.00","Client Transport","130233506","07/11/2018","Special Educational Needs","Primary - Transport","R3042"
"Wolverhampton City Council","http://opendatacommunities.org/id/metropolitan-district-council/wolverhampton","706705","Rainbow Taxis Limited","6229","1,463.00","Client Transport","130233504","07/11/2018","Special Educational Needs","Primary - Transport","R3042"
"Wolverhampton City Council","http://opendatacommunities.org/id/metropolitan-district-council/wolverhampton","706705","Rainbow Taxis Limited","6217","1,134.68","Client Transport","130233492","07/11/2018","Special Educational Needs","Special - Transport","R3042"
"Wolverhampton City Council","http://opendatacommunities.org/id/metropolitan-district-council/wolverhampton","706705","Rainbow Taxis Limited","6227","1,257.00","Client Transport","130233502","02/11/2018","Special Educational Needs","Special - Transport","R3042"
"Wolverhampton City Council","http://opendatacommunities.org/id/metropolitan-district-council/wolverhampton","706705","Rainbow Taxis Limited","6228","1,500.00","Client Transport","130233503","02/11/2018","Special Educational Needs","Special - Transport","R3042"
"Wolverhampton City Council","http://opendatacommunities.org/id/metropolitan-district-council/wolverhampton","706705","Rainbow Taxis Limited","6223","1,615.00","Client Transport","130233498","07/11/2018","Special Educational Needs","Special - Transport","R3042"
"Wolverhampton City Council","http://opendatacommunities.org/id/metropolitan-district-council/wolverhampton","706705","Rainbow Taxis Limited","6222","1,700.00","Client Transport","130233497","07/11/2018","Special Educational Needs","Special - Transport","R3042"
"Wolverhampton City Council","http://opendatacommunities.org/id/metropolitan-district-council/wolverhampton","706705","Rainbow Taxis Limited","6234","1,416.95","Client Transport","130233509","07/11/2018","Special Educational Needs","Special - Transport","R3042"
"Wolverhampton City Council","http://opendatacommunities.org/id/metropolitan-district-council/wolverhampton","706705","Rainbow Taxis Limited","6219","1,193.40","Client Transport","130233494","07/11/2018","Special Educational Needs","Special - Transport","R3042"
"Wolverhampton City Council","http://opendatacommunities.org/id/metropolitan-district-council/wolverhampton","706705","Rainbow Taxis Limited","6226","1,193.40","Client Transport","130233501","07/11/2018","Special Educational Needs","Special - Transport","R3042"
"Wolverhampton City Council","http://opendatacommunities.org/id/metropolitan-district-council/wolverhampton","706705","Rainbow Taxis Limited","6224","1,292.00","Client Transport","130233499","07/11/2018","Special Educational Needs","Special - Transport","R3042"
"Wolverhampton City Council","http://opendatacommunities.org/id/metropolitan-district-council/wolverhampton","706705","Rainbow Taxis Limited","6230","1,463.00","Client Transport","130233505","07/11/2018","Special Educational Needs","Primary - Transport","R3042"
"Wolverhampton City Council","http://opendatacommunities.org/id/metropolitan-district-council/wolverhampton","706705","Rainbow Taxis Limited","6232","1,372.00","Client Transport","130233507","07/11/2018","Special Educational Needs","Special - Transport","R3042"
"Wolverhampton City Council","http://opendatacommunities.org/id/metropolitan-district-council/wolverhampton","706705","Rainbow Taxis Limited","6225","1,679.00","Client Transport","130233500","02/11/2018","Special Educational Needs","Primary - Transport","R3042"
"Wolverhampton City Council","http://opendatacommunities.org/id/metropolitan-district-council/wolverhampton","706705","Rainbow Taxis Limited","6213","1,717.60","Client Transport","130233707","07/11/2018","Special Educational Needs","Special - Transport","R3042"
"Wolverhampton City Council","http://opendatacommunities.org/id/metropolitan-district-council/wolverhampton","706705","Rainbow Taxis Limited","6214","829.40","Client Transport","130233708","07/11/2018","Special Educational Needs","Special - Transport","R3042"
"Wolverhampton City Council","http://opendatacommunities.org/id/metropolitan-district-council/wolverhampton","706705","Rainbow Taxis Limited","6216","1,102.00","Client Transport","130233710","07/11/2018","Special Educational Needs","Special - Transport","R3042"
"Wolverhampton City Council","http://opendatacommunities.org/id/metropolitan-district-council/wolverhampton","706705","Rainbow Taxis Limited","6233","1,314.80","Client Transport","130233508","07/11/2018","Special Educational Needs","Student Awards","R3042"
"Wolverhampton City Council","http://opendatacommunities.org/id/metropolitan-district-council/wolverhampton","706705","Rainbow Taxis Limited","6235","1,168.00","Client Transport","130233510","07/11/2018","Special Educational Needs","Home to College Transport","R3042"
"Wolverhampton City Council","http://opendatacommunities.org/id/metropolitan-district-council/wolverhampton","706705","Rainbow Taxis Limited","6221","1,624.30","Client Transport","130233496","07/11/2018","Special Educational Needs","Special - Transport","R3042"
"Wolverhampton City Council","http://opendatacommunities.org/id/metropolitan-district-council/wolverhampton","706705","Rainbow Taxis Limited","6220","1,716.20","Client Transport","130233495","07/11/2018","Special Educational Needs","Special - Transport","R3042"
"Wolverhampton City Council","http://opendatacommunities.org/id/metropolitan-district-council/wolverhampton","706705","Rainbow Taxis Limited","6218","1,202.50","Client Transport","130233493","07/11/2018","Special Educational Needs","Special - Transport","R3042"
"Wolverhampton City Council","http://opendatacommunities.org/id/metropolitan-district-council/wolverhampton","706728","Raymond West F.R.I.C.S","1367/6A","611.04","Construction and Conversion","130203551","29/11/2018","-","Adaptations for People with Disabilites","C1100"
"Wolverhampton City Council","http://opendatacommunities.org/id/metropolitan-district-council/wolverhampton","706728","Raymond West F.R.I.C.S","1367/4A","-1,040.04","Construction and Conversion","130203367","29/11/2018","-","Adaptations for People with Disabilites","C1100"
"Wolverhampton City Council","http://opendatacommunities.org/id/metropolitan-district-council/wolverhampton","706728","Raymond West F.R.I.C.S","1367/5","429.00","Construction and Conversion","130203368","29/11/2018","-","Adaptations for People with Disabilites","C1100"
"Wolverhampton City Council","http://opendatacommunities.org/id/metropolitan-district-council/wolverhampton","706735","Re Today Services  (Christian Education)","26777","7,800.00","Services - Consultants","130232257","21/11/2018","School Improvement","SACRE","R4404"
"Wolverhampton City Council","http://opendatacommunities.org/id/metropolitan-district-council/wolverhampton","706735","Re Today Services  (Christian Education)","789","-1,690.00","Services - Consultants","130232761","21/11/2018","School Improvement","SACRE","R4404"
"Wolverhampton City Council","http://opendatacommunities.org/id/metropolitan-district-council/wolverhampton","706753","Red Forge Limited","0000104980","98.00","Services - Professional Fees","190524530","02/11/2018","Fleet Services","Fleet Management","R4400"
"Wolverhampton City Council","http://opendatacommunities.org/id/metropolitan-district-council/wolverhampton","706779","Re-Entry Project","8212","2,340.00","TPP - Alternative Provision of Education","130235339","21/11/2018","Specialist Support","Alternative Provision","R5037"
"Wolverhampton City Council","http://opendatacommunities.org/id/metropolitan-district-council/wolverhampton","706779","Re-Entry Project","8213","1,300.00","TPP - Alternative Provision of Education","130235175","21/11/2018","Specialist Support","Alternative Provision","R5037"
"Wolverhampton City Council","http://opendatacommunities.org/id/metropolitan-district-council/wolverhampton","706779","Re-Entry Project","8211","1,300.00","TPP - Alternative Provision of Education","130235340","21/11/2018","Specialist Support","Alternative Provision","R5037"
"Wolverhampton City Council","http://opendatacommunities.org/id/metropolitan-district-council/wolverhampton","706779","Re-Entry Project","8214","2,340.00","TPP - Alternative Provision of Education","130235341","21/11/2018","Specialist Support","Alternative Provision","R5037"
"Wolverhampton City Council","http://opendatacommunities.org/id/metropolitan-district-council/wolverhampton","706779","Re-Entry Project","8215","2,340.00","TPP - Alternative Provision of Education","130235342","21/11/2018","Specialist Support","Alternative Provision","R5037"
"Wolverhampton City Council","http://opendatacommunities.org/id/metropolitan-district-council/wolverhampton","706779","Re-Entry Project","8216","2,340.00","TPP - Alternative Provision of Education","130235343","21/11/2018","Specialist Support","Alternative Provision","R5037"
"Wolverhampton City Council","http://opendatacommunities.org/id/metropolitan-district-council/wolverhampton","706779","Re-Entry Project","8217","2,340.00","TPP - Alternative Provision of Education","130235176","21/11/2018","Specialist Support","Alternative Provision","R5037"
"Wolverhampton City Council","http://opendatacommunities.org/id/metropolitan-district-council/wolverhampton","706779","Re-Entry Project","8218","500.00","TPP - Alternative Provision of Education","130235177","21/11/2018","Specialist Support","Alternative Provision","R5037"
"Wolverhampton City Council","http://opendatacommunities.org/id/metropolitan-district-council/wolverhampton","706779","Re-Entry Project","8203","1,782.00","TPP - Alternative Provision of Education","130235173","21/11/2018","Specialist Support","Alternative Provision","R5037"
"Wolverhampton City Council","http://opendatacommunities.org/id/metropolitan-district-council/wolverhampton","706781","Rees Page Solicitors","M4879","500.00","Services - Professional Fees","190530789","21/11/2018","Legal Services","Centralised External Legal Costs","R4400"
"Wolverhampton City Council","http://opendatacommunities.org/id/metropolitan-district-council/wolverhampton","706810","Results Squared Limited","PCA20499","92.16","Equipment - Purchase","130235260","21/11/2018","Schools","Woodthorne Primary School","R4000"
"Wolverhampton City Council","http://opendatacommunities.org/id/metropolitan-district-council/wolverhampton","706820","Rexel UK Limited","436909644","40.30","R&M - Departmental planned (external)","130236339","30/11/2018","Schools","Uplands Junior School","R2001"
"Wolverhampton City Council","http://opendatacommunities.org/id/metropolitan-district-council/wolverhampton","706830","Riba Enterprises Limited","SINV00017415","3,975.00","Training Expenses","130233711","29/11/2018","Capital Programme","Capital Programme Team","R1650"
"Wolverhampton City Council","http://opendatacommunities.org/id/metropolitan-district-council/wolverhampton","706856","Rigby Taylor Limited","RSIN0278951","594.00","Materials","130232258","14/11/2018","Environmental Maintenance","Ground Maintenance East","R4007"
"Wolverhampton City Council","http://opendatacommunities.org/id/metropolitan-district-council/wolverhampton","706856","Rigby Taylor Limited","RSIN0279458","1,710.00","Materials","130232602","14/11/2018","Environmental Maintenance","Ground Maintenance East","R4007"
"Wolverhampton City Council","http://opendatacommunities.org/id/metropolitan-district-council/wolverhampton","706856","Rigby Taylor Limited","RSIN0279056","440.00","Materials","130232259","14/11/2018","Environmental Maintenance","Ground Maintenance East","R4007"
"Wolverhampton City Council","http://opendatacommunities.org/id/metropolitan-district-council/wolverhampton","706856","Rigby Taylor Limited","RSIN0279332","944.00","Materials","130232601","14/11/2018","Environmental Maintenance","Ground Maintenance East","R4007"
"Wolverhampton City Council","http://opendatacommunities.org/id/metropolitan-district-council/wolverhampton","706861","Eurovia Contracting","5862","372,072.76","Construction and Conversion","130234178","29/11/2018","-","GF - Accessing Growth Fund","C1100"
"Wolverhampton City Council","http://opendatacommunities.org/id/metropolitan-district-council/wolverhampton","706866","Rlss UK Enterprises Limited","SI529682-1","630.00","Materials for resale","130233204","02/11/2018","Leisure Services","Bert Williams Leisure Centre","R4008"
"Wolverhampton City Council","http://opendatacommunities.org/id/metropolitan-district-council/wolverhampton","706866","Rlss UK Enterprises Limited","SI572990-1","141.30","Comms - Postage","130233205","07/11/2018","Leisure Services","Bert Williams Leisure Centre","R4503"
"Wolverhampton City Council","http://opendatacommunities.org/id/metropolitan-district-council/wolverhampton","706868","Rmc Mechanical Services Limited","A23988","523.26","R&M - Departmental planned (external)","130235407","29/11/2018","Maintenance Programme","Centralised R&M","R2001"
"Wolverhampton City Council","http://opendatacommunities.org/id/metropolitan-district-council/wolverhampton","706868","Rmc Mechanical Services Limited","A23987","55.55","R&M - Departmental planned (external)","130235406","29/11/2018","Maintenance Programme","Centralised R&M","R2001"
"Wolverhampton City Council","http://opendatacommunities.org/id/metropolitan-district-council/wolverhampton","706868","Rmc Mechanical Services Limited","A23808CR","-234.15","R&M - Departmental planned (external)","130233712","14/11/2018","Maintenance Programme","Centralised R&M","R2001"
"Wolverhampton City Council","http://opendatacommunities.org/id/metropolitan-district-council/wolverhampton","706868","Rmc Mechanical Services Limited","A23817","715.00","R&M - Departmental planned (external)","130233382","14/11/2018","Facilities Management","Parkfields Office Accomodation","R2001"
"Wolverhampton City Council","http://opendatacommunities.org/id/metropolitan-district-council/wolverhampton","706868","Rmc Mechanical Services Limited","20484","5,328.08","R&M - Departmental planned (external)","130233375","14/11/2018","Maintenance Programme","Centralised R&M","R2001"
"Wolverhampton City Council","http://opendatacommunities.org/id/metropolitan-district-council/wolverhampton","706868","Rmc Mechanical Services Limited","A23969","79.14","R&M - Departmental planned (external)","130235183","23/11/2018","Maintenance Programme","Centralised R&M","R2001"
"Wolverhampton City Council","http://opendatacommunities.org/id/metropolitan-district-council/wolverhampton","706868","Rmc Mechanical Services Limited","A23972","310.72","R&M - Departmental planned (external)","130235186","23/11/2018","Maintenance Programme","Centralised R&M","R2001"
"Wolverhampton City Council","http://opendatacommunities.org/id/metropolitan-district-council/wolverhampton","706868","Rmc Mechanical Services Limited","A23975","962.45","R&M - Departmental planned (external)","130235189","23/11/2018","Maintenance Programme","Centralised R&M","R2001"
"Wolverhampton City Council","http://opendatacommunities.org/id/metropolitan-district-council/wolverhampton","706868","Rmc Mechanical Services Limited","A23757","1,339.50","R&M - Departmental planned (external)","130232869","14/11/2018","Maintenance Programme","Centralised R&M","R2001"
"Wolverhampton City Council","http://opendatacommunities.org/id/metropolitan-district-council/wolverhampton","706868","Rmc Mechanical Services Limited","A23870","233.96","R&M - Departmental planned (external)","130233725","14/11/2018","Maintenance Programme","Centralised R&M","R2001"
"Wolverhampton City Council","http://opendatacommunities.org/id/metropolitan-district-council/wolverhampton","706868","Rmc Mechanical Services Limited","A23815","1,089.00","R&M - Departmental planned (external)","130233380","14/11/2018","Markets","Bilston Market and Licensed Operations","R2001"
"Wolverhampton City Council","http://opendatacommunities.org/id/metropolitan-district-council/wolverhampton","706868","Rmc Mechanical Services Limited","A23808","2,029.30","R&M - Departmental planned (external)","130233379","14/11/2018","Maintenance Programme","Centralised R&M","R2001"
"Wolverhampton City Council","http://opendatacommunities.org/id/metropolitan-district-council/wolverhampton","706868","Rmc Mechanical Services Limited","A23966","145.45","R&M - Departmental planned (external)","130235180","30/11/2018","Maintenance Programme","Centralised R&M","R2001"
"Wolverhampton City Council","http://opendatacommunities.org/id/metropolitan-district-council/wolverhampton","706868","Rmc Mechanical Services Limited","A23990","555.50","R&M - Departmental planned (external)","130235409","30/11/2018","Maintenance Programme","Centralised R&M","R2001"
"Wolverhampton City Council","http://opendatacommunities.org/id/metropolitan-district-council/wolverhampton","706868","Rmc Mechanical Services Limited","A24016","125.87","R&M - Departmental planned (external)","130235575","29/11/2018","Cleaning","Public Conveniences","R2001"
"Wolverhampton City Council","http://opendatacommunities.org/id/metropolitan-district-council/wolverhampton","706868","Rmc Mechanical Services Limited","A23869","3,328.90","R&M - Departmental planned (external)","130233724","14/11/2018","Maintenance Programme","Centralised R&M","R2001"
"Wolverhampton City Council","http://opendatacommunities.org/id/metropolitan-district-council/wolverhampton","706868","Rmc Mechanical Services Limited","A23867","111.10","R&M - Departmental planned (external)","130233722","14/11/2018","Maintenance Programme","Centralised R&M","R2001"
"Wolverhampton City Council","http://opendatacommunities.org/id/metropolitan-district-council/wolverhampton","706868","Rmc Mechanical Services Limited","A23878","450.00","R&M - Departmental planned (external)","130233999","14/11/2018","Maintenance Programme","Centralised R&M","R2001"
"Wolverhampton City Council","http://opendatacommunities.org/id/metropolitan-district-council/wolverhampton","706868","Rmc Mechanical Services Limited","A23993","181.13","R&M - Departmental planned (external)","130235412","30/11/2018","Maintenance Programme","Centralised R&M","R2001"
"Wolverhampton City Council","http://opendatacommunities.org/id/metropolitan-district-council/wolverhampton","706868","Rmc Mechanical Services Limited","A23938","848.09","R&M - Departmental planned (external)","130234795","30/11/2018","Maintenance Programme","Centralised R&M","R2001"
"Wolverhampton City Council","http://opendatacommunities.org/id/metropolitan-district-council/wolverhampton","706868","Rmc Mechanical Services Limited","A24029","464.40","R&M - Departmental planned (external)","130235941","30/11/2018","Maintenance Programme","Centralised R&M","R2001"
"Wolverhampton City Council","http://opendatacommunities.org/id/metropolitan-district-council/wolverhampton","706868","Rmc Mechanical Services Limited","A24028","1,239.66","R&M - Departmental planned (external)","130235940","30/11/2018","Maintenance Programme","Centralised R&M","R2001"
"Wolverhampton City Council","http://opendatacommunities.org/id/metropolitan-district-council/wolverhampton","706868","Rmc Mechanical Services Limited","A23816","825.00","R&M - Departmental planned (external)","130233381","14/11/2018","Facilities Management","Victoria Square, Block 11","R2001"
"Wolverhampton City Council","http://opendatacommunities.org/id/metropolitan-district-council/wolverhampton","706868","Rmc Mechanical Services Limited","A23959","398.25","R&M - Departmental planned (external)","130235028","29/11/2018","Maintenance Programme","Centralised R&M","R2001"
"Wolverhampton City Council","http://opendatacommunities.org/id/metropolitan-district-council/wolverhampton","706868","Rmc Mechanical Services Limited","A24015","171.55","R&M - Departmental planned (external)","130235574","29/11/2018","Facilities Management","Caretakers Community Centre","R2001"
"Wolverhampton City Council","http://opendatacommunities.org/id/metropolitan-district-council/wolverhampton","706868","Rmc Mechanical Services Limited","A24011","55.55","R&M - Departmental planned (external)","130235730","29/11/2018","Facilities Management","Caretakers Community Centre","R2001"
"Wolverhampton City Council","http://opendatacommunities.org/id/metropolitan-district-council/wolverhampton","706868","Rmc Mechanical Services Limited","A24014","1,176.68","R&M - Departmental planned (external)","130235573","29/11/2018","Facilities Management","Caretakers Community Centre","R2001"
"Wolverhampton City Council","http://opendatacommunities.org/id/metropolitan-district-council/wolverhampton","706868","Rmc Mechanical Services Limited","A23941A","662.84","R&M - Departmental planned (external)","130235179","23/11/2018","Maintenance Programme","Centralised R&M","R2001"
"Wolverhampton City Council","http://opendatacommunities.org/id/metropolitan-district-council/wolverhampton","706868","Rmc Mechanical Services Limited","A23973","253.38","R&M - Departmental planned (external)","130235187","23/11/2018","Maintenance Programme","Centralised R&M","R2001"
"Wolverhampton City Council","http://opendatacommunities.org/id/metropolitan-district-council/wolverhampton","706868","Rmc Mechanical Services Limited","A23970","553.08","R&M - Departmental planned (external)","130235184","23/11/2018","Maintenance Programme","Centralised R&M","R2001"
"Wolverhampton City Council","http://opendatacommunities.org/id/metropolitan-district-council/wolverhampton","706868","Rmc Mechanical Services Limited","A23960","111.10","R&M - Departmental planned (external)","130235404","23/11/2018","Facilities Management","Culwell Street Depot","R2001"
"Wolverhampton City Council","http://opendatacommunities.org/id/metropolitan-district-council/wolverhampton","706868","Rmc Mechanical Services Limited","A23967","486.50","R&M - Departmental planned (external)","130235181","23/11/2018","Maintenance Programme","Centralised R&M","R2001"
"Wolverhampton City Council","http://opendatacommunities.org/id/metropolitan-district-council/wolverhampton","706868","Rmc Mechanical Services Limited","A23968","356.34","R&M - Departmental planned (external)","130235182","23/11/2018","Maintenance Programme","Centralised R&M","R2001"
"Wolverhampton City Council","http://opendatacommunities.org/id/metropolitan-district-council/wolverhampton","706868","Rmc Mechanical Services Limited","A23862","333.33","R&M - Departmental planned (external)","130233717","07/11/2018","Facilities Management","Caretakers Community Centre","R2001"
"Wolverhampton City Council","http://opendatacommunities.org/id/metropolitan-district-council/wolverhampton","706868","Rmc Mechanical Services Limited","A23729","39.57","R&M - Departmental planned (external)","130233207","02/11/2018","Maintenance Programme","Centralised R&M","R2001"
"Wolverhampton City Council","http://opendatacommunities.org/id/metropolitan-district-council/wolverhampton","706868","Rmc Mechanical Services Limited","A23866","310.86","R&M - Departmental planned (external)","130233721","07/11/2018","Cleaning","Public Conveniences","R2001"
"Wolverhampton City Council","http://opendatacommunities.org/id/metropolitan-district-council/wolverhampton","706868","Rmc Mechanical Services Limited","A23858","60.00","R&M - Departmental planned (external)","130233713","07/11/2018","Facilities Management","Culwell Street Depot","R2001"
"Wolverhampton City Council","http://opendatacommunities.org/id/metropolitan-district-council/wolverhampton","706868","Rmc Mechanical Services Limited","A23774","127.36","R&M - Departmental planned (external)","130233087","09/11/2018","Maintenance Programme","Centralised R&M","R2001"
"Wolverhampton City Council","http://opendatacommunities.org/id/metropolitan-district-council/wolverhampton","706868","Rmc Mechanical Services Limited","A23774","997.64","R&M - Departmental planned (external)","130233087","09/11/2018","Maintenance Programme","Centralised R&M","R2001"
"Wolverhampton City Council","http://opendatacommunities.org/id/metropolitan-district-council/wolverhampton","706868","Rmc Mechanical Services Limited","A23865","116.04","R&M - Departmental planned (external)","130233720","09/11/2018","Facilities Management","Caretakers Community Centre","R2001"
"Wolverhampton City Council","http://opendatacommunities.org/id/metropolitan-district-council/wolverhampton","706868","Rmc Mechanical Services Limited","A23861","280.82","R&M - Departmental planned (external)","130233716","09/11/2018","Facilities Management","Hickman Avenue Depot","R2001"
"Wolverhampton City Council","http://opendatacommunities.org/id/metropolitan-district-council/wolverhampton","706868","Rmc Mechanical Services Limited","A23864","322.08","R&M - Departmental planned (external)","130233719","09/11/2018","Facilities Management","Caretakers Community Centre","R2001"
"Wolverhampton City Council","http://opendatacommunities.org/id/metropolitan-district-council/wolverhampton","706868","Rmc Mechanical Services Limited","A23860","32.67","R&M - Departmental planned (external)","130233715","07/11/2018","Facilities Management","Hickman Avenue Depot","R2001"
"Wolverhampton City Council","http://opendatacommunities.org/id/metropolitan-district-council/wolverhampton","706868","Rmc Mechanical Services Limited","A23974","55.55","R&M - Departmental planned (external)","130235188","23/11/2018","Maintenance Programme","Centralised R&M","R2001"
"Wolverhampton City Council","http://opendatacommunities.org/id/metropolitan-district-council/wolverhampton","706868","Rmc Mechanical Services Limited","A23971","254.32","R&M - Departmental planned (external)","130235185","23/11/2018","Maintenance Programme","Centralised R&M","R2001"
"Wolverhampton City Council","http://opendatacommunities.org/id/metropolitan-district-council/wolverhampton","706868","Rmc Mechanical Services Limited","A23879","81.68","R&M - Departmental planned (external)","130234000","16/11/2018","Maintenance Programme","Centralised R&M","R2001"
"Wolverhampton City Council","http://opendatacommunities.org/id/metropolitan-district-council/wolverhampton","706868","Rmc Mechanical Services Limited","A23877","203.68","R&M - Departmental planned (external)","130233998","16/11/2018","Maintenance Programme","Centralised R&M","R2001"
"Wolverhampton City Council","http://opendatacommunities.org/id/metropolitan-district-council/wolverhampton","706868","Rmc Mechanical Services Limited","A23882","79.14","R&M - Departmental planned (external)","130234003","16/11/2018","Maintenance Programme","Centralised R&M","R2001"
"Wolverhampton City Council","http://opendatacommunities.org/id/metropolitan-district-council/wolverhampton","706868","Rmc Mechanical Services Limited","A23876","1,583.87","R&M - Departmental planned (external)","130233997","16/11/2018","Maintenance Programme","Centralised R&M","R2001"
"Wolverhampton City Council","http://opendatacommunities.org/id/metropolitan-district-council/wolverhampton","706868","Rmc Mechanical Services Limited","A23881","387.92","R&M - Departmental planned (external)","130234002","16/11/2018","Maintenance Programme","Centralised R&M","R2001"
"Wolverhampton City Council","http://opendatacommunities.org/id/metropolitan-district-council/wolverhampton","706868","Rmc Mechanical Services Limited","A23871","439.74","R&M - Departmental planned (external)","130233726","16/11/2018","Maintenance Programme","Centralised R&M","R2001"
"Wolverhampton City Council","http://opendatacommunities.org/id/metropolitan-district-council/wolverhampton","706868","Rmc Mechanical Services Limited","A23907","6,840.00","R&M - Departmental planned (external)","130234606","16/11/2018","Maintenance Programme","Civic Centre Repairs & Maintenance","R2001"
"Wolverhampton City Council","http://opendatacommunities.org/id/metropolitan-district-council/wolverhampton","706868","Rmc Mechanical Services Limited","A23650","453.80","R&M - Departmental planned (external)","130231890","09/11/2018","Maintenance Programme","Centralised R&M","R2001"
"Wolverhampton City Council","http://opendatacommunities.org/id/metropolitan-district-council/wolverhampton","706868","Rmc Mechanical Services Limited","A23859","131.26","R&M - Departmental planned (external)","130233714","09/11/2018","Facilities Management","Culwell Street Depot","R2001"
"Wolverhampton City Council","http://opendatacommunities.org/id/metropolitan-district-council/wolverhampton","706868","Rmc Mechanical Services Limited","A23863","55.55","R&M - Departmental planned (external)","130233718","09/11/2018","Facilities Management","Caretakers Community Centre","R2001"
"Wolverhampton City Council","http://opendatacommunities.org/id/metropolitan-district-council/wolverhampton","706868","Rmc Mechanical Services Limited","A23776","351.88","R&M - Departmental planned (external)","130233210","07/11/2018","Maintenance Programme","Centralised R&M","R2001"
"Wolverhampton City Council","http://opendatacommunities.org/id/metropolitan-district-council/wolverhampton","706868","Rmc Mechanical Services Limited","A23777","222.20","R&M - Departmental planned (external)","130233211","07/11/2018","Maintenance Programme","Centralised R&M","R2001"
"Wolverhampton City Council","http://opendatacommunities.org/id/metropolitan-district-council/wolverhampton","706868","Rmc Mechanical Services Limited","A23787","129.56","R&M - Departmental planned (external)","130233220","07/11/2018","Maintenance Programme","Centralised R&M","R2001"
"Wolverhampton City Council","http://opendatacommunities.org/id/metropolitan-district-council/wolverhampton","706868","Rmc Mechanical Services Limited","A23785","116.04","R&M - Departmental planned (external)","130233218","07/11/2018","Maintenance Programme","Centralised R&M","R2001"
"Wolverhampton City Council","http://opendatacommunities.org/id/metropolitan-district-council/wolverhampton","706868","Rmc Mechanical Services Limited","A23781","578.14","R&M - Departmental planned (external)","130233314","07/11/2018","Maintenance Programme","Centralised R&M","R2001"
"Wolverhampton City Council","http://opendatacommunities.org/id/metropolitan-district-council/wolverhampton","706868","Rmc Mechanical Services Limited","A23778","191.60","R&M - Departmental planned (external)","130233212","07/11/2018","Maintenance Programme","Centralised R&M","R2001"
"Wolverhampton City Council","http://opendatacommunities.org/id/metropolitan-district-council/wolverhampton","706868","Rmc Mechanical Services Limited","A23783","528.99","R&M - Departmental planned (external)","130233216","07/11/2018","Maintenance Programme","Centralised R&M","R2001"
"Wolverhampton City Council","http://opendatacommunities.org/id/metropolitan-district-council/wolverhampton","706868","Rmc Mechanical Services Limited","A23788","111.10","R&M - Departmental planned (external)","130233376","07/11/2018","Maintenance Programme","Centralised R&M","R2001"
"Wolverhampton City Council","http://opendatacommunities.org/id/metropolitan-district-council/wolverhampton","706868","Rmc Mechanical Services Limited","A23790","874.32","R&M - Departmental planned (external)","130233377","07/11/2018","Maintenance Programme","Centralised R&M","R2001"
"Wolverhampton City Council","http://opendatacommunities.org/id/metropolitan-district-council/wolverhampton","706868","Rmc Mechanical Services Limited","A23735","55.55","R&M - Departmental planned (external)","130233132","07/11/2018","Maintenance Programme","Centralised R&M","R2001"
"Wolverhampton City Council","http://opendatacommunities.org/id/metropolitan-district-council/wolverhampton","706868","Rmc Mechanical Services Limited","A23779","276.83","R&M - Departmental planned (external)","130233213","07/11/2018","Maintenance Programme","Centralised R&M","R2001"
"Wolverhampton City Council","http://opendatacommunities.org/id/metropolitan-district-council/wolverhampton","706868","Rmc Mechanical Services Limited","A23786","503.98","R&M - Departmental planned (external)","130233219","07/11/2018","Maintenance Programme","Centralised R&M","R2001"
"Wolverhampton City Council","http://opendatacommunities.org/id/metropolitan-district-council/wolverhampton","706868","Rmc Mechanical Services Limited","A23771","13.80","R&M - Departmental planned (external)","130233084","07/11/2018","Maintenance Programme","Centralised R&M","R2001"
"Wolverhampton City Council","http://opendatacommunities.org/id/metropolitan-district-council/wolverhampton","706868","Rmc Mechanical Services Limited","A23771","65.34","R&M - Departmental planned (external)","130233084","07/11/2018","Maintenance Programme","Centralised R&M","R2001"
"Wolverhampton City Council","http://opendatacommunities.org/id/metropolitan-district-council/wolverhampton","706868","Rmc Mechanical Services Limited","A23771","39.57","R&M - Departmental planned (external)","130233084","07/11/2018","Maintenance Programme","Centralised R&M","R2001"
"Wolverhampton City Council","http://opendatacommunities.org/id/metropolitan-district-council/wolverhampton","706868","Rmc Mechanical Services Limited","A23775","195.00","R&M - Departmental planned (external)","130233209","07/11/2018","Maintenance Programme","Centralised R&M","R2001"
"Wolverhampton City Council","http://opendatacommunities.org/id/metropolitan-district-council/wolverhampton","706868","Rmc Mechanical Services Limited","A23780","945.27","R&M - Departmental planned (external)","130233214","07/11/2018","Maintenance Programme","Centralised R&M","R2001"
"Wolverhampton City Council","http://opendatacommunities.org/id/metropolitan-district-council/wolverhampton","706868","Rmc Mechanical Services Limited","A23789","111.10","R&M - Departmental planned (external)","130233221","07/11/2018","Maintenance Programme","Centralised R&M","R2001"
"Wolverhampton City Council","http://opendatacommunities.org/id/metropolitan-district-council/wolverhampton","706868","Rmc Mechanical Services Limited","A23772","28.03","R&M - Departmental planned (external)","130233085","07/11/2018","Maintenance Programme","Centralised R&M","R2001"
"Wolverhampton City Council","http://opendatacommunities.org/id/metropolitan-district-council/wolverhampton","706868","Rmc Mechanical Services Limited","A23773","609.96","R&M - Departmental planned (external)","130233086","07/11/2018","Maintenance Programme","Centralised R&M","R2001"
"Wolverhampton City Council","http://opendatacommunities.org/id/metropolitan-district-council/wolverhampton","706868","Rmc Mechanical Services Limited","A23772","25.43","R&M - Departmental planned (external)","130233085","07/11/2018","Maintenance Programme","Centralised R&M","R2001"
"Wolverhampton City Council","http://opendatacommunities.org/id/metropolitan-district-council/wolverhampton","706868","Rmc Mechanical Services Limited","A23772","2.09","R&M - Departmental planned (external)","130233085","07/11/2018","Maintenance Programme","Centralised R&M","R2001"
"Wolverhampton City Council","http://opendatacommunities.org/id/metropolitan-district-council/wolverhampton","706868","Rmc Mechanical Services Limited","A23695","111.10","R&M - Departmental planned (external)","130232607","02/11/2018","Maintenance Programme","Centralised R&M","R2001"
"Wolverhampton City Council","http://opendatacommunities.org/id/metropolitan-district-council/wolverhampton","706868","Rmc Mechanical Services Limited","A23710","1,967.92","R&M - Departmental planned (external)","130232123","02/11/2018","Bereavement Services","Cemeteries","R2001"
"Wolverhampton City Council","http://opendatacommunities.org/id/metropolitan-district-council/wolverhampton","706868","Rmc Mechanical Services Limited","A23733","55.55","R&M - Departmental planned (external)","130233208","02/11/2018","Maintenance Programme","Centralised R&M","R2001"
"Wolverhampton City Council","http://opendatacommunities.org/id/metropolitan-district-council/wolverhampton","706868","Rmc Mechanical Services Limited","A23807CR","-702.45","R&M - Departmental planned (external)","130233996","21/11/2018","Maintenance Programme","Centralised R&M","R2001"
"Wolverhampton City Council","http://opendatacommunities.org/id/metropolitan-district-council/wolverhampton","706868","Rmc Mechanical Services Limited","A23962","90.00","R&M - Departmental planned (external)","130235030","21/11/2018","Maintenance Programme","Centralised R&M","R2001"
"Wolverhampton City Council","http://opendatacommunities.org/id/metropolitan-district-council/wolverhampton","706868","Rmc Mechanical Services Limited","A23946","3,238.05","R&M - Departmental planned (external)","130234940","21/11/2018","Maintenance Programme","Centralised R&M","R2001"
"Wolverhampton City Council","http://opendatacommunities.org/id/metropolitan-district-council/wolverhampton","706868","Rmc Mechanical Services Limited","A23782","2,403.46","R&M - Departmental planned (external)","130233215","07/11/2018","Maintenance Programme","Centralised R&M","R2001"
"Wolverhampton City Council","http://opendatacommunities.org/id/metropolitan-district-council/wolverhampton","706868","Rmc Mechanical Services Limited","A23948","457.51","R&M - Departmental planned (external)","130234942","21/11/2018","Estates and Valuations","Industrial Premises ; Fordhouse Road","R2001"
"Wolverhampton City Council","http://opendatacommunities.org/id/metropolitan-district-council/wolverhampton","706868","Rmc Mechanical Services Limited","A23935","111.10","R&M - Departmental planned (external)","130234939","21/11/2018","Maintenance Programme","Centralised R&M","R2001"
"Wolverhampton City Council","http://opendatacommunities.org/id/metropolitan-district-council/wolverhampton","706868","Rmc Mechanical Services Limited","A23965","85.89","R&M - Departmental planned (external)","130235033","21/11/2018","Maintenance Programme","Centralised R&M","R2001"
"Wolverhampton City Council","http://opendatacommunities.org/id/metropolitan-district-council/wolverhampton","706868","Rmc Mechanical Services Limited","A23947","657.65","R&M - Departmental planned (external)","130234941","21/11/2018","Maintenance Programme","Centralised R&M","R2001"
"Wolverhampton City Council","http://opendatacommunities.org/id/metropolitan-district-council/wolverhampton","706868","Rmc Mechanical Services Limited","A23899","177.85","R&M - Departmental planned (external)","130234319","21/11/2018","Maintenance Programme","Centralised R&M","R2001"
"Wolverhampton City Council","http://opendatacommunities.org/id/metropolitan-district-council/wolverhampton","706868","Rmc Mechanical Services Limited","A23936","111.10","R&M - Departmental planned (external)","130234793","21/11/2018","Maintenance Programme","Centralised R&M","R2001"
"Wolverhampton City Council","http://opendatacommunities.org/id/metropolitan-district-council/wolverhampton","706868","Rmc Mechanical Services Limited","A23937","79.14","R&M - Departmental planned (external)","130234794","21/11/2018","Maintenance Programme","Centralised R&M","R2001"
"Wolverhampton City Council","http://opendatacommunities.org/id/metropolitan-district-council/wolverhampton","706868","Rmc Mechanical Services Limited","A23880","114.08","R&M - Departmental planned (external)","130234001","21/11/2018","Maintenance Programme","Centralised R&M","R2001"
"Wolverhampton City Council","http://opendatacommunities.org/id/metropolitan-district-council/wolverhampton","706868","Rmc Mechanical Services Limited","A23944","65.34","R&M - Departmental planned (external)","130234799","21/11/2018","Maintenance Programme","Centralised R&M","R2001"
"Wolverhampton City Council","http://opendatacommunities.org/id/metropolitan-district-council/wolverhampton","706868","Rmc Mechanical Services Limited","A23961","50.50","R&M - Departmental planned (external)","130235029","21/11/2018","Maintenance Programme","Centralised R&M","R2001"
"Wolverhampton City Council","http://opendatacommunities.org/id/metropolitan-district-council/wolverhampton","706868","Rmc Mechanical Services Limited","A23896","157.02","R&M - Departmental planned (external)","130234316","21/11/2018","Maintenance Programme","Centralised R&M","R2001"
"Wolverhampton City Council","http://opendatacommunities.org/id/metropolitan-district-council/wolverhampton","706868","Rmc Mechanical Services Limited","A23964","111.10","R&M - Departmental planned (external)","130235032","21/11/2018","Maintenance Programme","Centralised R&M","R2001"
"Wolverhampton City Council","http://opendatacommunities.org/id/metropolitan-district-council/wolverhampton","706868","Rmc Mechanical Services Limited","A23898","120.61","R&M - Departmental planned (external)","130234318","21/11/2018","Maintenance Programme","Centralised R&M","R2001"
"Wolverhampton City Council","http://opendatacommunities.org/id/metropolitan-district-council/wolverhampton","706868","Rmc Mechanical Services Limited","A23897","321.16","R&M - Departmental planned (external)","130234317","21/11/2018","Maintenance Programme","Centralised R&M","R2001"
"Wolverhampton City Council","http://opendatacommunities.org/id/metropolitan-district-council/wolverhampton","706868","Rmc Mechanical Services Limited","A23900","1,917.90","R&M - Departmental planned (external)","130234320","21/11/2018","Maintenance Programme","Centralised R&M","R2001"
"Wolverhampton City Council","http://opendatacommunities.org/id/metropolitan-district-council/wolverhampton","706868","Rmc Mechanical Services Limited","A23963","1,890.34","R&M - Departmental planned (external)","130235031","21/11/2018","Maintenance Programme","Centralised R&M","R2001"
"Wolverhampton City Council","http://opendatacommunities.org/id/metropolitan-district-council/wolverhampton","706868","Rmc Mechanical Services Limited","A23939","131.53","R&M - Departmental planned (external)","130234796","21/11/2018","Maintenance Programme","Centralised R&M","R2001"
"Wolverhampton City Council","http://opendatacommunities.org/id/metropolitan-district-council/wolverhampton","706868","Rmc Mechanical Services Limited","A23943","2,405.52","R&M - Departmental planned (external)","130234798","21/11/2018","Maintenance Programme","Centralised R&M","R2001"
"Wolverhampton City Council","http://opendatacommunities.org/id/metropolitan-district-council/wolverhampton","706868","Rmc Mechanical Services Limited","A23940","193.12","R&M - Departmental planned (external)","130234797","21/11/2018","Maintenance Programme","Centralised R&M","R2001"
"Wolverhampton City Council","http://opendatacommunities.org/id/metropolitan-district-council/wolverhampton","706868","Rmc Mechanical Services Limited","A23945","223.97","R&M - Departmental planned (external)","130234800","21/11/2018","Maintenance Programme","Centralised R&M","R2001"
"Wolverhampton City Council","http://opendatacommunities.org/id/metropolitan-district-council/wolverhampton","706868","Rmc Mechanical Services Limited","A23989","60.00","R&M - Departmental planned (external)","130235408","29/11/2018","Maintenance Programme","Centralised R&M","R2001"
"Wolverhampton City Council","http://opendatacommunities.org/id/metropolitan-district-council/wolverhampton","706868","Rmc Mechanical Services Limited","A24012","111.10","R&M - Departmental planned (external)","130235571","29/11/2018","Facilities Management","Caretakers Community Centre","R2001"
"Wolverhampton City Council","http://opendatacommunities.org/id/metropolitan-district-council/wolverhampton","706868","Rmc Mechanical Services Limited","A24013","128.03","R&M - Departmental planned (external)","130235572","29/11/2018","Facilities Management","Caretakers Community Centre","R2001"
"Wolverhampton City Council","http://opendatacommunities.org/id/metropolitan-district-council/wolverhampton","706868","Rmc Mechanical Services Limited","A23868","682.56","R&M - Departmental planned (external)","130233723","14/11/2018","Maintenance Programme","Centralised R&M","R2001"
"Wolverhampton City Council","http://opendatacommunities.org/id/metropolitan-district-council/wolverhampton","706868","Rmc Mechanical Services Limited","A23807","2,809.90","R&M - Departmental planned (external)","130233378","14/11/2018","Maintenance Programme","Centralised R&M","R2001"
"Wolverhampton City Council","http://opendatacommunities.org/id/metropolitan-district-council/wolverhampton","706868","Rmc Mechanical Services Limited","A23895","111.10","R&M - Departmental planned (external)","130234315","14/11/2018","Maintenance Programme","Centralised R&M","R2001"
"Wolverhampton City Council","http://opendatacommunities.org/id/metropolitan-district-council/wolverhampton","706868","Rmc Mechanical Services Limited","A23819","892.80","R&M - Departmental planned (external)","130233384","14/11/2018","Maintenance Programme","Centralised R&M","R2001"
"Wolverhampton City Council","http://opendatacommunities.org/id/metropolitan-district-council/wolverhampton","706868","Rmc Mechanical Services Limited","A23818","3,987.50","R&M - Departmental planned (external)","130233383","14/11/2018","Markets","Bilston Market and Licensed Operations","R2001"
"Wolverhampton City Council","http://opendatacommunities.org/id/metropolitan-district-council/wolverhampton","706868","Rmc Mechanical Services Limited","A23994","553.16","R&M - Departmental planned (external)","130235413","30/11/2018","Maintenance Programme","Centralised R&M","R2001"
"Wolverhampton City Council","http://opendatacommunities.org/id/metropolitan-district-council/wolverhampton","706868","Rmc Mechanical Services Limited","A24002","138.71","R&M - Departmental planned (external)","130235569","30/11/2018","Maintenance Programme","Centralised R&M","R2001"
"Wolverhampton City Council","http://opendatacommunities.org/id/metropolitan-district-council/wolverhampton","706868","Rmc Mechanical Services Limited","A23995","11,929.70","R&M - Departmental planned (external)","130235568","30/11/2018","Maintenance Programme","Centralised R&M","R2001"
"Wolverhampton City Council","http://opendatacommunities.org/id/metropolitan-district-council/wolverhampton","706868","Rmc Mechanical Services Limited","A23991","401.39","R&M - Departmental planned (external)","130235410","30/11/2018","Maintenance Programme","Centralised R&M","R2001"
"Wolverhampton City Council","http://opendatacommunities.org/id/metropolitan-district-council/wolverhampton","706868","Rmc Mechanical Services Limited","A23986","20,980.00","Construction and Conversion","130235405","29/11/2018","-","Capital Maintenance - Heating Pipework Upgrades","C1100"
"Wolverhampton City Council","http://opendatacommunities.org/id/metropolitan-district-council/wolverhampton","706868","Rmc Mechanical Services Limited","A24017","55.55","R&M - Departmental planned (external)","130235576","29/11/2018","Facilities Management","Culwell Street Depot","R2001"
"Wolverhampton City Council","http://opendatacommunities.org/id/metropolitan-district-council/wolverhampton","706868","Rmc Mechanical Services Limited","A22355","624.80","Construction and Conversion","130236249","30/11/2018","-","Capital Maintenance - Heating Pipework Upgrades","C1100"
"Wolverhampton City Council","http://opendatacommunities.org/id/metropolitan-district-council/wolverhampton","706868","Rmc Mechanical Services Limited","A23992","286.81","R&M - Departmental planned (external)","130235411","30/11/2018","Maintenance Programme","Centralised R&M","R2001"
"Wolverhampton City Council","http://opendatacommunities.org/id/metropolitan-district-council/wolverhampton","706868","Rmc Mechanical Services Limited","A23784","206.76","R&M - Departmental planned (external)","130233217","14/11/2018","Maintenance Programme","Centralised R&M","R2001"
"Wolverhampton City Council","http://opendatacommunities.org/id/metropolitan-district-council/wolverhampton","706868","Rmc Mechanical Services Limited","20483","8,273.76","R&M - Departmental planned (external)","130233206","14/11/2018","Maintenance Programme","Centralised R&M","R2001"
"Wolverhampton City Council","http://opendatacommunities.org/id/metropolitan-district-council/wolverhampton","706868","Rmc Mechanical Services Limited","A23770","796.50","R&M - Departmental planned (external)","130233083","14/11/2018","Maintenance Programme","Centralised R&M","R2001"
"Wolverhampton City Council","http://opendatacommunities.org/id/metropolitan-district-council/wolverhampton","706870","Rnib","SIN234935","34.95","Equipment - Purchase","130225872","14/11/2018","Physical Disabilities Care Purchasing","PD Care Purchasing (Spot Placements)","R4000"
"Wolverhampton City Council","http://opendatacommunities.org/id/metropolitan-district-council/wolverhampton","706893","Rocom (A Division Of Nimans Limited)","I3328718","134.15","Equipment - Purchase","130231332","02/11/2018","Human Resources","HR Advice","R4000"
"Wolverhampton City Council","http://opendatacommunities.org/id/metropolitan-district-council/wolverhampton","706902","Rompa Limited","116547","25.00","Equipment - Purchase","130231904","09/11/2018","Learning Disability Provider","Support Plus","R4000"
"Wolverhampton City Council","http://opendatacommunities.org/id/metropolitan-district-council/wolverhampton","706902","Rompa Limited","116547","7.95","Equipment - Purchase","130231904","09/11/2018","Learning Disability Provider","Support Plus","R4000"
"Wolverhampton City Council","http://opendatacommunities.org/id/metropolitan-district-council/wolverhampton","706935","Royal Mail","1802059600","787.00","Comms - Postage","130234479","14/11/2018","Adult Education","Service Wide","R4503"
"Wolverhampton City Council","http://opendatacommunities.org/id/metropolitan-district-council/wolverhampton","706935","Royal Mail","9057579806","90.26","Comms - Postage","130232870","16/11/2018","Business Support","People�s Business Support","R4503"
"Wolverhampton City Council","http://opendatacommunities.org/id/metropolitan-district-council/wolverhampton","706935","Royal Mail","1109394330","108.87","Comms - Postage","130234801","16/11/2018","Adult Education","Service Wide","R4503"
"Wolverhampton City Council","http://opendatacommunities.org/id/metropolitan-district-council/wolverhampton","706936","Royal Mail Group PLC","9057543842","-348.21","Comms - Postage","130232260","14/11/2018","ICTS","Document Centre - General","R4503"
"Wolverhampton City Council","http://opendatacommunities.org/id/metropolitan-district-council/wolverhampton","706936","Royal Mail Group PLC","9057657620","1,513.58","Comms - Postage","190526761","14/11/2018","Public Service Reform","Electoral Registration","R4503"
"Wolverhampton City Council","http://opendatacommunities.org/id/metropolitan-district-council/wolverhampton","706936","Royal Mail Group PLC","9057580875","6.34","Comms - Postage","190526762","14/11/2018","Public Service Reform","Electoral Registration","R4503"
"Wolverhampton City Council","http://opendatacommunities.org/id/metropolitan-district-council/wolverhampton","706936","Royal Mail Group PLC","9057589772","1,632.38","Comms - Postage","130232873","21/11/2018","ICTS","Document Centre - General","R4503"
"Wolverhampton City Council","http://opendatacommunities.org/id/metropolitan-district-council/wolverhampton","706936","Royal Mail Group PLC","9057502146","1,937.49","Comms - Postage","130231478","07/11/2018","ICTS","Document Centre - General","R4503"
"Wolverhampton City Council","http://opendatacommunities.org/id/metropolitan-district-council/wolverhampton","706943","Royal Wolverhampton  Hospitals NHS Trust","0000016008","-13,670.50","TPP - Payments to Health Authorities","130236335","30/11/2018","Special Educational Needs","SEN Special Education Admin","R5101"
"Wolverhampton City Council","http://opendatacommunities.org/id/metropolitan-district-council/wolverhampton","706943","Royal Wolverhampton  Hospitals NHS Trust","0000222203","19,640.66","TPP - Payments to Health Authorities","130236337","30/11/2018","Special Educational Needs","SEN Special Education Admin","R5101"
"Wolverhampton City Council","http://opendatacommunities.org/id/metropolitan-district-council/wolverhampton","706943","Royal Wolverhampton  Hospitals NHS Trust","0000222731","18,184.00","TPP - Public Health Contracts","130233754","29/11/2018","Healthy Ageing","LA Role in Health Protection","R5060"
"Wolverhampton City Council","http://opendatacommunities.org/id/metropolitan-district-council/wolverhampton","706943","Royal Wolverhampton  Hospitals NHS Trust","0000222783","2,517.17","TPP - Payments to Local Authorities","130233756","29/11/2018","Adults Assessment & Care Management West","Hospital Team","R5100"
"Wolverhampton City Council","http://opendatacommunities.org/id/metropolitan-district-council/wolverhampton","706943","Royal Wolverhampton  Hospitals NHS Trust","0000222127","108,000.00","TPP - Public Health Contracts","130231488","07/11/2018","Starting and Developing Well","Health Visiting 0-5 Year Olds","R5060"
"Wolverhampton City Council","http://opendatacommunities.org/id/metropolitan-district-council/wolverhampton","706943","Royal Wolverhampton  Hospitals NHS Trust","0000221908","2,517.17","TPP - Payments to Local Authorities","130230234","02/11/2018","Adults Assessment & Care Management West","Hospital Team","R5100"
"Wolverhampton City Council","http://opendatacommunities.org/id/metropolitan-district-council/wolverhampton","706943","Royal Wolverhampton  Hospitals NHS Trust","0000222784","3,882.92","TPP - Payments to Local Authorities","130233757","29/11/2018","Adults Assessment & Care Management West","Hospital Team","R5100"
"Wolverhampton City Council","http://opendatacommunities.org/id/metropolitan-district-council/wolverhampton","706943","Royal Wolverhampton  Hospitals NHS Trust","0000222068","13,670.50","TPP - Payments to Health Authorities","130236334","30/11/2018","Special Educational Needs","SEN Special Education Admin","R5101"
"Wolverhampton City Council","http://opendatacommunities.org/id/metropolitan-district-council/wolverhampton","706943","Royal Wolverhampton  Hospitals NHS Trust","0000221909","3,882.92","TPP - Payments to Local Authorities","130230235","02/11/2018","Adults Assessment & Care Management West","Hospital Team","R5100"
"Wolverhampton City Council","http://opendatacommunities.org/id/metropolitan-district-council/wolverhampton","706943","Royal Wolverhampton  Hospitals NHS Trust","0000222756","173,660.00","TPP - Public Health Contracts","130233755","30/11/2018","Starting and Developing Well","Sexual Health","R5060"
"Wolverhampton City Council","http://opendatacommunities.org/id/metropolitan-district-council/wolverhampton","706943","Royal Wolverhampton  Hospitals NHS Trust","0000222805","450,000.00","TPP - Public Health Contracts","130233758","29/11/2018","Starting and Developing Well","Health Visiting 0-5 Year Olds","R5060"
"Wolverhampton City Council","http://opendatacommunities.org/id/metropolitan-district-council/wolverhampton","706943","Royal Wolverhampton  Hospitals NHS Trust","0000222806","39,635.58","TPP - Payments to Health Authorities","130233759","29/11/2018","Independent Living Service","Independent Living Service","R5101"
"Wolverhampton City Council","http://opendatacommunities.org/id/metropolitan-district-council/wolverhampton","706965","Ruskin Mill Trust-Glasshouse College","SIN002007","16,953.33","TPP - Alternative Provision of Education","130234005","21/11/2018","Special Educational Needs","Post 16 SEN Provision","R5037"
"Wolverhampton City Council","http://opendatacommunities.org/id/metropolitan-district-council/wolverhampton","706969","Ruth Turnbull","742","134.00","Services - Professional Fees","130233089","07/11/2018","Visitor Economy","Art Galleries - Schools Art SLA Service","R4400"
"Wolverhampton City Council","http://opendatacommunities.org/id/metropolitan-district-council/wolverhampton","706969","Ruth Turnbull","741","75.00","Services - Professional Fees","130233088","07/11/2018","Visitor Economy","Art Galleries - Schools Art SLA Service","R4400"
"Wolverhampton City Council","http://opendatacommunities.org/id/metropolitan-district-council/wolverhampton","706987","S B Waste Management & Recycling Limited","117493","15,085.67","TPP - Waste Disposal","130234006","29/11/2018","Waste and Recycling Service","Waste Collection and Recycling Service - General","R5003"
"Wolverhampton City Council","http://opendatacommunities.org/id/metropolitan-district-council/wolverhampton","706987","S B Waste Management & Recycling Limited","117497","144.80","TPP - Waste Disposal","130234010","29/11/2018","Waste and Recycling Service","Waste Collection and Recycling Service - General","R5003"
"Wolverhampton City Council","http://opendatacommunities.org/id/metropolitan-district-council/wolverhampton","706987","S B Waste Management & Recycling Limited","117495","1,654.54","TPP - Waste Disposal","130234008","29/11/2018","Highways Maintenance","Patching","R5003"
"Wolverhampton City Council","http://opendatacommunities.org/id/metropolitan-district-council/wolverhampton","706987","S B Waste Management & Recycling Limited","117496","209.09","TPP - Waste Disposal","130234009","29/11/2018","Waste and Recycling Service","Waste Collection and Recycling Service - General","R5003"
"Wolverhampton City Council","http://opendatacommunities.org/id/metropolitan-district-council/wolverhampton","706987","S B Waste Management & Recycling Limited","117500","1,794.98","TPP - Waste Disposal","130234013","29/11/2018","Waste and Recycling Service","Waste Collection and Recycling Service - General","R5003"
"Wolverhampton City Council","http://opendatacommunities.org/id/metropolitan-district-council/wolverhampton","706987","S B Waste Management & Recycling Limited","117501","1,115.53","TPP - Waste Disposal","130234014","29/11/2018","Waste and Recycling Service","Waste Collection and Recycling Service - General","R5003"
"Wolverhampton City Council","http://opendatacommunities.org/id/metropolitan-district-council/wolverhampton","706987","S B Waste Management & Recycling Limited","117499","657.90","TPP - Waste Disposal","130234012","29/11/2018","Independent Living Service","Independent Living Service","R5003"
"Wolverhampton City Council","http://opendatacommunities.org/id/metropolitan-district-council/wolverhampton","706987","S B Waste Management & Recycling Limited","117498","418.18","TPP - Waste Disposal","130234011","29/11/2018","Waste and Recycling Service","Waste Collection and Recycling Service - General","R5003"
"Wolverhampton City Council","http://opendatacommunities.org/id/metropolitan-district-council/wolverhampton","706987","S B Waste Management & Recycling Limited","117494","6,338.48","TPP - Waste Disposal","130234007","29/11/2018","Waste and Recycling Service","Waste Collection and Recycling Service - General","R5003"
"Wolverhampton City Council","http://opendatacommunities.org/id/metropolitan-district-council/wolverhampton","706987","S B Waste Management & Recycling Limited","117502","161.00","TPP - Waste Disposal","130234015","29/11/2018","Highways Maintenance","Patching","R5003"
"Wolverhampton City Council","http://opendatacommunities.org/id/metropolitan-district-council/wolverhampton","707023","S. & J. Pritchard Landscapes Limited","322","165.00","R&M - Departmental response (external)","130235037","21/11/2018","Environmental Maintenance","Parks - East Area Management","R2003"
"Wolverhampton City Council","http://opendatacommunities.org/id/metropolitan-district-council/wolverhampton","707023","S. & J. Pritchard Landscapes Limited","321","185.00","R&M - Departmental response (external)","130235036","21/11/2018","Environmental Maintenance","Parks - South West Area Management","R2003"
"Wolverhampton City Council","http://opendatacommunities.org/id/metropolitan-district-council/wolverhampton","707023","S. & J. Pritchard Landscapes Limited","319","135.00","R&M - Departmental response (external)","130235034","21/11/2018","Environmental Maintenance","Parks - South West Area Management","R2003"
"Wolverhampton City Council","http://opendatacommunities.org/id/metropolitan-district-council/wolverhampton","707023","S. & J. Pritchard Landscapes Limited","320","695.00","R&M - Departmental response (external)","130235035","21/11/2018","Environmental Maintenance","Parks - East Area Management","R2003"
"Wolverhampton City Council","http://opendatacommunities.org/id/metropolitan-district-council/wolverhampton","707023","S. & J. Pritchard Landscapes Limited","318","225.00","R&M - Departmental response (external)","130233899","14/11/2018","Environmental Maintenance","Parks - East Area Management","R2003"
"Wolverhampton City Council","http://opendatacommunities.org/id/metropolitan-district-council/wolverhampton","707023","S. & J. Pritchard Landscapes Limited","327","1,650.00","Grounds Maintenance - Contract","130235421","30/11/2018","Environmental Maintenance","Ground Maintenance East","R2075"
"Wolverhampton City Council","http://opendatacommunities.org/id/metropolitan-district-council/wolverhampton","707023","S. & J. Pritchard Landscapes Limited","327","950.00","Grounds Maintenance - Contract","130235421","30/11/2018","Environmental Maintenance","Ground Maintenance East","R2075"
"Wolverhampton City Council","http://opendatacommunities.org/id/metropolitan-district-council/wolverhampton","707023","S. & J. Pritchard Landscapes Limited","327","850.00","Grounds Maintenance - Contract","130235421","30/11/2018","Environmental Maintenance","Ground Maintenance East","R2075"
"Wolverhampton City Council","http://opendatacommunities.org/id/metropolitan-district-council/wolverhampton","707023","S. & J. Pritchard Landscapes Limited","323","165.00","R&M - Departmental response (external)","130235417","29/11/2018","Environmental Maintenance","Parks - South West Area Management","R2003"
"Wolverhampton City Council","http://opendatacommunities.org/id/metropolitan-district-council/wolverhampton","707023","S. & J. Pritchard Landscapes Limited","325","265.00","R&M - Departmental response (external)","130235419","29/11/2018","Environmental Maintenance","Parks - East Area Management","R2003"
"Wolverhampton City Council","http://opendatacommunities.org/id/metropolitan-district-council/wolverhampton","707023","S. & J. Pritchard Landscapes Limited","324","145.00","R&M - Departmental response (external)","130235418","29/11/2018","Environmental Maintenance","Parks - East Area Management","R2003"
"Wolverhampton City Council","http://opendatacommunities.org/id/metropolitan-district-council/wolverhampton","707023","S. & J. Pritchard Landscapes Limited","326","35.00","R&M - Departmental response (external)","130235420","29/11/2018","Environmental Maintenance","Parks - South West Area Management","R2003"
"Wolverhampton City Council","http://opendatacommunities.org/id/metropolitan-district-council/wolverhampton","707023","S. & J. Pritchard Landscapes Limited","317","285.00","R&M - Departmental response (external)","130233898","14/11/2018","Environmental Maintenance","Parks - South West Area Management","R2003"
"Wolverhampton City Council","http://opendatacommunities.org/id/metropolitan-district-council/wolverhampton","707034","S.S Gill - A. Singh & S.S.Gill","0032","8,962.82","Insurances - Premises","130234179","29/11/2018","Visitor Economy","The Little Civic","R2800"
"Wolverhampton City Council","http://opendatacommunities.org/id/metropolitan-district-council/wolverhampton","707035","S.S. Sidhu","0489","168.56","Books","130233090","14/11/2018","Local Economy","Reference Library","R4309"
"Wolverhampton City Council","http://opendatacommunities.org/id/metropolitan-district-council/wolverhampton","707035","S.S. Sidhu","0490","167.21","Books","130233091","21/11/2018","Local Economy","Reference Library","R4309"
"Wolverhampton City Council","http://opendatacommunities.org/id/metropolitan-district-council/wolverhampton","707035","S.S. Sidhu","0488","175.46","Books","130232624","07/11/2018","Local Economy","Reference Library","R4309"
"Wolverhampton City Council","http://opendatacommunities.org/id/metropolitan-district-council/wolverhampton","707035","S.S. Sidhu","0491","182.04","Books","130235038","30/11/2018","Local Economy","Reference Library","R4309"
"Wolverhampton City Council","http://opendatacommunities.org/id/metropolitan-district-council/wolverhampton","707047","Safda Mahmood Limited","2169(4)","129.00","Training Expenses","130235193","29/11/2018","Public Service Reform","Centralised Training","R1650"
"Wolverhampton City Council","http://opendatacommunities.org/id/metropolitan-district-council/wolverhampton","707047","Safda Mahmood Limited","2169(3)","129.00","Training Expenses","130235423","29/11/2018","Public Service Reform","Centralised Training","R1650"
"Wolverhampton City Council","http://opendatacommunities.org/id/metropolitan-district-council/wolverhampton","707047","Safda Mahmood Limited","2169(2)","129.00","Training Expenses","130235422","29/11/2018","Public Service Reform","Centralised Training","R1650"
"Wolverhampton City Council","http://opendatacommunities.org/id/metropolitan-district-council/wolverhampton","707047","Safda Mahmood Limited","2169(1)","258.00","Training Expenses","130235192","29/11/2018","Public Service Reform","Centralised Training","R1650"
"Wolverhampton City Council","http://opendatacommunities.org/id/metropolitan-district-council/wolverhampton","707069","Compasss Minerals UK Ltd","473577","4,018.46","Materials","130233386","29/11/2018","Highways Maintenance","Winter Maintenance","R4007"
"Wolverhampton City Council","http://opendatacommunities.org/id/metropolitan-district-council/wolverhampton","707069","Compasss Minerals UK Ltd","473732","1,014.59","Materials","130233727","29/11/2018","Highways Maintenance","Winter Maintenance","R4007"
"Wolverhampton City Council","http://opendatacommunities.org/id/metropolitan-district-council/wolverhampton","707069","Compasss Minerals UK Ltd","474149","3,876.31","Materials","130234607","29/11/2018","Highways Maintenance","Winter Maintenance","R4007"
"Wolverhampton City Council","http://opendatacommunities.org/id/metropolitan-district-council/wolverhampton","707069","Compasss Minerals UK Ltd","474222","1,894.04","Materials","130234803","29/11/2018","Highways Maintenance","Winter Maintenance","R4007"
"Wolverhampton City Council","http://opendatacommunities.org/id/metropolitan-district-council/wolverhampton","707069","Compasss Minerals UK Ltd","473509","2,901.63","Materials","130233223","29/11/2018","Highways Maintenance","Winter Maintenance","R4007"
"Wolverhampton City Council","http://opendatacommunities.org/id/metropolitan-district-council/wolverhampton","707069","Compasss Minerals UK Ltd","473426","6,022.42","Materials","130233385","29/11/2018","Highways Maintenance","Winter Maintenance","R4007"
"Wolverhampton City Council","http://opendatacommunities.org/id/metropolitan-district-council/wolverhampton","707085","Sandwell Mbc","210035587","402.00","Construction and Conversion","130234181","29/11/2018","-","Bilston Urban Village","C1100"
"Wolverhampton City Council","http://opendatacommunities.org/id/metropolitan-district-council/wolverhampton","707121","Schneider Electric Limited","98349329","1,412.50","R&M - Departmental planned (internal)","130230555","02/11/2018","Maintenance Programme","Civic Centre Repairs & Maintenance","R2000"
"Wolverhampton City Council","http://opendatacommunities.org/id/metropolitan-district-council/wolverhampton","707121","Schneider Electric Limited","98457861","2,383.33","R&M - Departmental planned (internal)","130234322","29/11/2018","Maintenance Programme","Civic Centre Repairs & Maintenance","R2000"
"Wolverhampton City Council","http://opendatacommunities.org/id/metropolitan-district-council/wolverhampton","707121","Schneider Electric Limited","98401883","1,412.50","R&M - Departmental planned (internal)","130231333","02/11/2018","Maintenance Programme","Civic Centre Repairs & Maintenance","R2000"
"Wolverhampton City Council","http://opendatacommunities.org/id/metropolitan-district-council/wolverhampton","707162","Scottish Power PLC","60500186269988055553020_Units-12-14_Wholesale_Market","44.51","Electricity","190525640","09/11/2018","Corporate Asset Management","Central Utilities to Recharge","R2100"
"Wolverhampton City Council","http://opendatacommunities.org/id/metropolitan-district-council/wolverhampton","707164","Scribes Plus Limited","10008","119.40","Books","130230457","23/11/2018","Bereavement Services","Crematorium","R4309"
